Workbook

Sheet Menu
A4: kapitel | B4: Status | C4: Emne | D4: Vis
B5: =Gruppeoplysninger!F2 -> 0 | C5: Oplysninger om projektet
A6: 0 | B6: ='0-projektbeskrivelse'!E2 -> 0 | C6: Projektbeskrivelse
A7: 1 | B7: ='1-Problemanalyse'!D2 -> 0 | C7: Problemanalyse
A8: 2 | B8: ='2-Produkt og bruger'!M2 -> 0 | C8: Produktet og brugeren
A9: 3 | B9: ='3-idegenerering'!D2 -> 0 | C9: Idegenerering
A10: 4 | B10: =Købsadfærd!G2 -> 0 | C10: Produktet og kunden
A11: 5 | B11: =Fysisk_produkt!H2 -> 0 | C11: Udvikling af fysisk produktløsning
A12: 6 | B12: =Produktspecifikation!G2 -> 0 | C12: Produktspecifikation
A13: 7 | B13: =Fysisk_konstruktion!I2 -> 0 | C13: Fysisk konstruktion
A14: 8 | B14: =Fremstilling!K2 -> 0 | C14: Fremstilling
A15: 9 | B15: ='Teknologi-analyse'!R2 -> 0 | C15: Teknologi-analyse
A16: 10 | B16: =Miljøvurdering!F2 -> 0 | C16: Miljøvurdering
A17: 11 | B17: =Produktmodning!D2 -> 0 | C17: Produktmodning
A18: 12 | B18: =Produktion!G2 -> 0 | C18: Produktion
A19: 13 | B19: =Markedsføring!E2 -> 0 | C19: Markedsføring
A20: 14 | B20: =Markedsføring!E3 -> 0 | C20: Økonomi
A21: 15 | B21: =Virksomhedsetablering!C2 -> 0 | C21: Virksomhedens etablering
A23: Status:
A24: 0 | B24: Indikerer, at aktiviteten ikke er påbegyndt | D24: Luk alle faner og hop til menuen
A25: 1 | B25: Aktiviteten er startet
A26: 2 | B26: Aktiviteten er udført

Sheet Gruppeoplysninger (hidden)
E2: Udført: | F2: =IF(L18>0,IF(L18=11,2,1),0) -> 0
B3: Projekt udleveret | E3: dato | L3: =ISTEXT(F3)*1 -> 0
B4: Projekt afsluttes | E4: dato | L4: =ISTEXT(F4)*1 -> 0
B5: Projektbeskrivelse afleveres | E5: dato | L5: 0
B6: Materiale bestilling | E6: dato | L6: 0
B7: Værksteds start | E7: dato | L7: 0
B8: Værksteds slut | E8: dato | L8: 0
B9: Produkt aflevering | E9: dato | L9: 0
B10: Rapport aflevering | E10: dato | L10: =ISTEXT(F10)*1 -> 0
B11: Gruppe medlemmer
K12: =ISTEXT(B12)+ISTEXT(C12)+ISTEXT(D12)+ISTEXT(E12)+ISTEXT(F12) -> 0 | L12: =IF(K12>2,1,0) -> 0
B13: Projekt Tema
L14: =ISTEXT(F14)*1 -> 0
B15: Projekt navn
L16: 0
B17: Produktnavn/Produkt
B18: ='3-idegenerering'!B31 ->  | L18: =SUM(L3:L17) -> 0
B50: ="Projekt: "&B16&" Lavet af: "&B12 &" " &C12 & " " & D12 & "" & E12 & " " & F12 -> Projekt: Lavet af:

Sheet 0-projektbeskrivelse (hidden)
D2: Udført: | E2: =IF(O2>0,IF(O2=8,2,1),0) -> 0 | O2: =ISTEXT(B4)+ISTEXT(C6)+ISTEXT(C7)+ISTEXT(C8)+ISTEXT(E9)+ISTEXT(B10)+ISTEXT(B12)+ISTEXT(B14) -> 0
B3: Læs projektoplægget grundigt og skriv et resume, der specielt er rettet mod din opfattelse af emnet og de dele af emnet, du synes er interessante. | O3: 9
B5: Find 3 nøgleproblemer, du kunne tænke dig at beskæftige dig med i dette projekt
B6: Nøgleproblem 1
B7: Nøgleproblem 2
B8: Nøgleproblem 3
B9: Udvælg et af dine nøgleproblemer, og argumenter for dit valg | D9: Jeg har valgt nøgleproblem nr.
B11: Beskriv årsagerne til dit nøgleproblem
B13: Beskriv virkningerne af dit nøgleproblem
B15: Opstil en tidsplan for projektet. Du kan benytte: Gantt-kortet på fanebladet herunder
B16: Generer Projektbeskrivelse. Udskriv denne projektbeskrivelse sammen med dit ganttkort og eventuelt andet, din lærer ønsker indgår i projektbeskrivelsen

Sheet Gantt_lang (hidden)
A4: Tema | F4: Uge 1 | H4: Uge 2 | J4: Uge 3 | L4: Uge 4 | N4: Uge 5 | P4: Uge 6 | R4: Uge 7 | T4: Uge 8 | V4: Uge 9 | X4: Uge 10 | Z4: Uge 11 | AB4: Uge 12 | AD4: Uge 13 | AF4: Uge 14 | AH4: Uge 15 | AJ4: Uge 16 | AL4: Uge 17 | AN4: Uge 18 | AP4: Uge 19 | AR4: Uge 20
A5: Produktet
A6: 0 - Projektbeskrivelse | B6: FM, STJ | D6: 447
A7: Gennemlæsning af oplæg
A8: Identifikation af nøgleproblemer
A9: Opstilling af problemtræer
A10: Beskrivelse af projekt
A11: Udarbejdelse af tidsplan
A12: Aflevering af projektbeskrivelse
A13: 1 - Problemanalyse | B13: FM, STJ | D13: 447
A14: Informationssøgning
A15: Kildekritik
A16: 2 - Produktet og brugeren | B16: FM, STJ | D16: 447
A17: Udarbejdelse af spørgeskema | B17: FM | D17: 447
A18: Udførsel af spørgeskema
A19: Opfølgelse på spørgeskema undersøgelse | B19: STJ | D19: 447
A20: 3 - Idearbejde
A21: Idegenerering | B21: FM | D21: 447
A22: ideudvælgelse | B22: STJ | C22: STH | D22: 447
A23: ideudbyggelse
A24: nytteværdianalyse
A25: 4 - Produktet og kunden (A) | B25: FM | C25: STH | D25: 447 | E25: Forgik også på Jem & Fix (Fawad)
A26: identificer brugere, kunder og beslutningstager
A28: 5 - Udvikling af fysisk produktløsning | B28: FM | D28: 447
A29: Tre forskellige tekniske løsningsforslag
A30: Udvælgelse med scorecard
A31: Teknologivurdering
A32: 6 - Produktspecifikation | B32: STJ | D32: 447
A33: Benchmarking
A34: 7 - konstruktion fysisk | B34: FM | C34: STH | D34: 447
A35: Tegninger og beskrivelser
A36: Materialer
A37: Processbeskrivelser
A38: 8 - Værksted | B38: STJ | D38: 447
A39: Værktøj
A40: Tidstagning og procesbeskrivelser
A41: 9 - Teknologi-analyse | B41: STJ | D41: 470
A42: 10 - Miljøvurdering | B42: STJ, FM | C42: STH | D42: 470-447 | E42: Hjælp fra Peter Mortensen
A43: 11 - Produkt modning | B43: STJ | D43: 447
A44: Teknologirapporten
A46: Finn Madsen | B46: FM | H46: håndværkeren
A47: Søren Thor Jensen | B47: STJ | H47: Idemand /Entreprenør
A48: Stefan Hedegaard | B48: STH | H48: Administrator
A49: Alle

Sheet 1-Problemanalyse (hidden)
C2: Udført: | D2: =IF(N2>0,IF(N2=19,2,1),0) -> 0 | N2: =ISTEXT(C6)+ISTEXT(B8)+ISTEXT(B10)+ISTEXT(C12)+ISTEXT(C13)+ISTEXT(C14)+ISTEXT(C15)+ISTEXT(C16)+ISTEXT(B19) + SUM(E12:E16) -> 0
B3: Problemtræ | N3: 19
B4: Opstil et problemtræ over årsager og virkninger - benyt fx https://www.lucidchart.com
B5: Udvælg i dit problemtræ, med grøn farve, de punkter, du mener, bør indgå i dit projekt. Indsæt linket til det færdige resultat herunder.
B6: Link til problemtræ:
B7: Beskriv problemstillingen
B9: Opstil en problemformulering
B11: Stil 5 spørgsmål med HV-ord til, hvad du vil undersøge i rapporten. Analyser og dokumenter ud fra dine 5 spørgsmål. Skriv spørgsmålet, og klik så på linket til højre for at uddybe.
B12: Spørgsmål 1 | E12: ='SPM1'!G2 -> 0
B13: Spørgsmål 2 | E13: ='SPM2'!G2 -> 0
B14: Spørgsmål 3 | E14: ='SPM3'!G2 -> 0
B15: Spørgsmål 4 | E15: ='SPM4'!G2 -> 0
B16: Spørgsmål 5 | E16: ='SPM5'!G2 -> 0
B17: Links til din Analyse og Dokumentation af problemstillingen (indsæt dine links herunder). Du kan benytte nedenstående link til at hjælpe med at skrive referencerne korrekt
B18: http://www.americanessays.com/tool-box/apa-format-citation-generator/

Sheet SPM1 (hidden)
F2: Udført: | G2: =IF(Q20>0,IF(Q20>6,2,1),0) -> 0
B3: =IF(LEN('1-Problemanalyse'!C12)=0,"Spørgsmålet hentes automatisk",'1-Problemanalyse'!C12) -> Spørgsmålet hentes automatisk
B4: Formålet med spørgsmålet
Q5: =ISTEXT(B5)*1 -> 0
B6: Kildernes hovedsynspunkter
B7: 1 | C7: Kilde-henvisning | Q7: =ISTEXT(D7)*1 -> 0
C8: Hoved- synspunkter i teksten | Q8: =ISTEXT(D8)*1 -> 0
B9: 2 | C9: Kilde-henvisning | Q9: 0
C10: Hoved- synspunkter i teksten | Q10: 0
B11: 3 | C11: Kilde-henvisning | Q11: 0
C12: Hoved- synspunkter i teksten | Q12: =ISTEXT(D12)*1 -> 0
B13: Find kildernes holdning til spørgsmålet
Q14: =ISTEXT(B14)*1 -> 0
B18: Konkluder med udgangspunkt i dine kilder
Q19: =ISTEXT(B19)*1 -> 0
Q20: =SUM(Q5:Q19) -> 0

Sheet SPM2 (hidden)
F2: Udført: | G2: =IF(Q20>0,IF(Q20>6,2,1),0) -> 0
B3: =IF(LEN('1-Problemanalyse'!C13)=0,"Spørgsmålet hentes automatisk",'1-Problemanalyse'!C13) -> Spørgsmålet hentes automatisk
B4: Formålet med spørgsmålet
Q5: =ISTEXT(B5)*1 -> 0
B6: Kildernes hovedsynspunkter
B7: 1 | C7: Kilde-henvisning | Q7: =ISTEXT(D7)*1 -> 0
C8: Hoved- synspunkter i teksten | Q8: =ISTEXT(D8)*1 -> 0
B9: 2 | C9: Kilde-henvisning | Q9: 0
C10: Hoved- synspunkter i teksten | Q10: 0
B11: 3 | C11: Kilde-henvisning | Q11: 0
C12: Hoved- synspunkter i teksten | Q12: =ISTEXT(D12)*1 -> 0
B13: Find kildernes holdning til spørgsmålet
Q14: =ISTEXT(B14)*1 -> 0
B18: Konkluder med udgangspunkt i dine kilder
Q19: =ISTEXT(B19)*1 -> 0
Q20: =SUM(Q5:Q19) -> 0

Sheet SPM3 (hidden)
F2: Udført: | G2: =IF(Q20>0,IF(Q20>6,2,1),0) -> 0
B3: =IF(LEN('1-Problemanalyse'!C14)=0,"Spørgsmålet hentes automatisk",'1-Problemanalyse'!C14) -> Spørgsmålet hentes automatisk
B4: Formålet med spørgsmålet
Q5: =ISTEXT(B5)*1 -> 0
B6: Kildernes hovedsynspunkter
B7: 1 | C7: Kilde-henvisning | Q7: =ISTEXT(D7)*1 -> 0
C8: Hoved- synspunkter i teksten | Q8: =ISTEXT(D8)*1 -> 0
B9: 2 | C9: Kilde-henvisning | Q9: 0
C10: Hoved- synspunkter i teksten | Q10: 0
B11: 3 | C11: Kilde-henvisning | Q11: 0
C12: Hoved- synspunkter i teksten | Q12: =ISTEXT(D12)*1 -> 0
B13: Find kildernes holdning til spørgsmålet
Q14: =ISTEXT(B14)*1 -> 0
B18: Konkluder med udgangspunkt i dine kilder
Q19: =ISTEXT(B19)*1 -> 0
Q20: =SUM(Q5:Q19) -> 0

Sheet SPM4 (hidden)
F2: Udført: | G2: =IF(Q20>0,IF(Q20>6,2,1),0) -> 0
B3: =IF(LEN('1-Problemanalyse'!C15)=0,"Spørgsmålet hentes automatisk",'1-Problemanalyse'!C15) -> Spørgsmålet hentes automatisk
B4: Formålet med spørgsmålet
Q5: =ISTEXT(B5)*1 -> 0
B6: Kildernes hovedsynspunkter
B7: 1 | C7: Kilde-henvisning | Q7: =ISTEXT(D7)*1 -> 0
C8: Hoved- synspunkter i teksten | Q8: =ISTEXT(D8)*1 -> 0
B9: 2 | C9: Kilde-henvisning | Q9: 0
C10: Hoved- synspunkter i teksten | Q10: 0
B11: 3 | C11: Kilde-henvisning | Q11: 0
C12: Hoved- synspunkter i teksten | Q12: =ISTEXT(D12)*1 -> 0
B13: Find kildernes holdning til spørgsmålet
Q14: =ISTEXT(B14)*1 -> 0
B18: Konkluder med udgangspunkt i dine kilder
Q19: =ISTEXT(B19)*1 -> 0
Q20: =SUM(Q5:Q19) -> 0

Sheet SPM5 (hidden)
F2: Udført: | G2: =IF(Q20>0,IF(Q20>6,2,1),0) -> 0
B3: =IF(LEN('1-Problemanalyse'!C16)=0,"Spørgsmålet hentes automatisk",'1-Problemanalyse'!C16) -> Spørgsmålet hentes automatisk
B4: Formålet med spørgsmålet
Q5: =ISTEXT(B5)*1 -> 0
B6: Kildernes hovedsynspunkter
B7: 1 | C7: Kilde-henvisning | Q7: =ISTEXT(D7)*1 -> 0
C8: Hoved- synspunkter i teksten | Q8: =ISTEXT(D8)*1 -> 0
B9: 2 | C9: Kilde-henvisning | Q9: 0
C10: Hoved- synspunkter i teksten | Q10: 0
B11: 3 | C11: Kilde-henvisning | Q11: 0
C12: Hoved- synspunkter i teksten | Q12: =ISTEXT(D12)*1 -> 0
B13: Find kildernes holdning til spørgsmålet
Q14: =ISTEXT(B14)*1 -> 0
B18: Konkluder med udgangspunkt i dine kilder
Q19: =ISTEXT(B19)*1 -> 0
Q20: =SUM(Q5:Q19) -> 0

Sheet 2-Produkt og bruger (hidden)
L2: Udført: | M2: =IF(O28>0,IF((O28=14)*(P18=4),2,1),0) -> 0
B3: Beskriv brugeren
O4: =ISTEXT(B4)*1 -> 0
B5: Brugerens data
B6: Alder, uddannelse og familiær status | O6: =ISTEXT(E6)*1 -> 0
B7: Indkomst, personligt og i husstanden | O7: =ISTEXT(E7)*1 -> 0
B8: Holdningsprofil | O8: 0
B9: Politik, kultur m.m.
B10: Status profil
B11: Hvad giver status | O11: =ISTEXT(E10)*1 -> 0
B12: Hvem køber, ejer, anvender produktet | O12: 0
B13: Beskriv brugerens behov i forhold til problemstillingen
O14: =ISTEXT(B14)*1 -> 0
B15: Beskriv, hvad formålet med en brugerundersøgelse skal være
O16: 0
B17: Arten af brugerundersøgelsen
B18: Kvalitativ | F18: Kvantitativ | H18: ='2b'!F2 -> 0 | I18: Anonym | L18: Personlig | P18: =C18+H18 -> 0
B19: Antal adspurgte og medie (internet, telefon, personligt, udsendt eller ….)
B20: Antal | I20: Medie | O20: =ISTEXT(K20)*ISNUMBER(D20) -> 0
B21: Emner, der skal besvares i undersøgelsen
B22: Indledende | O22: =ISTEXT(G22)*1 -> 0
B23: Undersøgelse del1 | O23: =ISTEXT(G23)*1 -> 0
B24: Undersøgelse del2 | O24: 0
B25: Afsluttende | O25: 0
B26: 4-6 linjer, der indfører de adspurgte i problemstillingen
O27: 0
O28: =SUM(O4:O27) -> 0

Sheet 2a (hidden)
B2: Udført: | C2: =IF(E24>0,IF((E24>7),2,1),0) -> 0
B3: Denne undersøgelse
B4: Skriv din indledning her Anvend dette skema som inspiration, idet du skal udskifte ALT, hvad der er skrevet, med din egen tekst. Denne boks skal du også slette, når du har læst den.
B5: Evt. demografiske spørgsmål
E6: =ISTEXT(B6)*1 -> 0
B7: Spørg med Hv-ord (Husk, de første spørgsmål skal være lette og føre den adspurgte ind i problemstillingen)
E8: =ISTEXT(B8)*1 -> 0
B9: Spørg med Hv-ord
E10: 0
B11: Spørg med Hv-ord
E12: 0
B13: Spørg med Hv-ord
E14: 0
B15: Spørg med Hv-ord
E16: 0
B17: Spørg med Hv-ord
E18: 0
B19: Spørg med Hv-ord
E20: 0
B21: Spørg med Hv-ord
E22: 0
E24: =SUM(E4:E22) -> 0

Sheet 2b (hidden)
E2: Udført: | F2: =IF(K4>0,IF((K4=1),2,1),0) -> 0
B3: Denne undersøgelse
B4: Skriv din indledning her Anvend dette skema som inspiration, idet du skal udskifte ALT, hvad der er skrevet med din egen tekst. Denne boks skal du også slette, når du har læst den. | K4: =IF(LEN(B4)<>181,1,0) -> 0
B5: Sæt kryds efter, hvor enig du er i udsagnet . 4 er helt enig | C5: 4 | D5: 3 | E5: 2 | F5: 1
B6: Spørg med Hv-ord
B8: Sæt kryds i det udsagn, du er mest enig i
B9: Udsagn 1
B10: Udsagn 2
B11: Udsagn 3
B12: Udsagn 4
B13: Kopier og skab dit eget skema med de spørgsmål, du har behov for

Sheet 3-idegenerering (hidden)
C2: Udført: | D2: =IF(N34>0,IF((N33=6)*(N29>=6)*(N33>=6),2,1),0) -> 0
B3: Fokusspørgsmål (der skal idegenereres over) | D3: Brainstorm
B4: Spørgsmål 1 | D4: Almindelig | E4: =IF((N4=2)+(N5=2),2,IF((N4=1)+(N5=1),1,0)) -> 0 | N4: ='BS1'!D2 -> 0
D5: Omvendt | N5: ='OBS1'!D2 -> 0
B6: Spørgsmål 2 | D6: Almindelig | E6: =IF((N6=2)+(N7=2),2,IF((N6=1)+(N7=1),1,0)) -> 0 | N6: ='BS2'!D4 -> 0
D7: Omvendt | N7: ='OBS2'!D4 -> 0
B8: Spørgsmål 3 | D8: Almindelig | E8: =IF((N8=2)+(N9=2),2,IF((N8=1)+(N9=1),1,0)) -> 0 | N8: ='BS3'!D6 -> 0
D9: Omvendt | N9: ='OBS3'!D6 -> 0
B10: Spørgsmål 4 | D10: Almindeligt | E10: =IF((N10=2)+(N11=2),2,IF((N10=1)+(N11=1),1,0)) -> 0 | N10: ='BS4'!D8 -> 0
D11: Omvendt | N11: ='OBS4'!D8 -> 0
B12: Spørgsmål 5 | D12: Almindelig | E12: =IF((N12=2)+(N13=2),2,IF((N12=1)+(N13=1),1,0)) -> 0 | N12: ='BS5'!D10 -> 0
D13: Omvendt | N13: ='OBS5'!D10 -> 0
B14: Udvælg og beskriv ud fra ovenstående brainstorming - 3 vilde ideer, der kan udbygges. Skriv først ideerne, og udbyg og kombiner dem derefter i linket til højre | N14: =SUM(E4:E13) -> 0
B15: =IF(ISTEXT(C4),C4,"Spørgsmål 1") -> Spørgsmål 1
E16: ='spg1'!C2 -> 0
B18: =IF(ISTEXT(C4),C4,"Spørgsmål 2") -> Spørgsmål 2
E19: ='spg2'!C2 -> 0
B21: =IF(ISTEXT(C5),C5,"Spørgsmål 3") -> Spørgsmål 3
E22: ='spg3'!C2 -> 0
B24: =IF(ISTEXT(C6),C6,"Spørgsmål4") -> Spørgsmål4
E25: ='spg4'!C2 -> 0
B27: =IF(ISTEXT(C7),C7,"Spørgsmål5") -> Spørgsmål5
E28: ='spg5'!C2 -> 0
N29: =SUM(E16:E28) -> 0
B30: Beskriv den udvalgte ide og det produkt, den kan føre til
N31: =IF(LEN(C31)>0,2,0) -> 0
B32: Tegn og beskriv forslag til, hvordan produktet kan se ud | E32: =Produktide!C2 -> 0
B33: Udfør en nytteværdianalyse på produktideen | E33: =Nytteværdi!C2 -> 0 | N33: =SUM(E31:E33) -> 0
N34: =N33+N29+N14 -> 0

Sheet BS1 (hidden)
C2: Udført: | D2: =IF(N28>0,IF(N28>6,2,1),0) -> 0
B3: Fokusspørgsmål (der skal idegenereres over) | D3: Brainstorm
B4: =IF(LEN('3-idegenerering'!C4)=0,"Spørgsmålet hentes automatisk",'3-idegenerering'!C4) -> Spørgsmålet hentes automatisk
B5: Ide 1 | N5: =IF(LEN(C5)>0,1,"") -> 
B6: Ide 2 | N6: =IF(LEN(C6)>0,1,"") -> 
B7: Ide 3
B8: Ide 4
B9: Ide 5
B10: Ide 6
B11: Ide 7
B12: Ide 8
B13: Ide 9
B14: Ide 10
B15: Ide 11
B16: Ide 12
B17: Ide 13
B18: Ide 14
B19: Ide 15
B20: Ide 16
B21: Ide 17
B22: Ide 18
B23: Ide 19
B24: Ide 20
B25: Ide 21
B26: Ide 22
B27: Ide 23
N28: =SUM(N5:N27) -> 0

Sheet OBS1 (hidden)
C2: Udført: | D2: =IF(N28+N6>0,IF((N28>5)*(N6=1),2,1),0) -> 0
B3: Fokusspørgsmål (der skal idegenereres over)
B4: =IF(LEN('3-idegenerering'!C4)=0,"Spørgsmålet hentes automatisk",'3-idegenerering'!C4) -> Spørgsmålet hentes automatisk
B5: Fokusspørgsmål negativt formuleret
N6: =IF(LEN(B6)>0,1,0) -> 0
B7: Ide nr. | C7: Den negative ide | D7: Vendt til brugbar ide
B8: Ide 1 | N8: =IF(ISTEXT(C8)+ISTEXT(D8)=2,1,0) -> 0
B9: Ide 2 | N9: =IF(ISTEXT(C9)+ISTEXT(D9)=2,1,0) -> 0
B10: Ide 3 | N10: 0
B11: Ide 4 | N11: 0
B12: Ide 5 | N12: 0
B13: Ide 6 | N13: 0
B14: Ide 7 | N14: 0
B15: Ide 8 | N15: 0
B16: Ide 9 | N16: 0
B17: Ide 10 | N17: 0
B18: Ide 11 | N18: 0
B19: Ide 12 | N19: 0
B20: Ide 13 | N20: 0
B21: Ide 14 | N21: 0
B22: Ide 15 | N22: 0
B23: Ide 16 | N23: 0
B24: Ide 17 | N24: 0
B25: Ide 18 | N25: 0
B26: Ide 19 | N26: 0
B27: Ide 20 | N27: 0
N28: =SUM(N8:N27) -> 0

Sheet BS2 (hidden)
C2: Udført: | D2: =IF(N28>0,IF(N28>6,2,1),0) -> 0
B3: Fokusspørgsmål (der skal idegenereres over) | D3: Brainstorm
B4: =IF(LEN('3-idegenerering'!C6)=0,"Spørgsmålet hentes automatisk",'3-idegenerering'!C6) -> Spørgsmålet hentes automatisk
B5: Ide 1 | N5: =IF(LEN(C5)>0,1,"") -> 
B6: Ide 2 | N6: =IF(LEN(C6)>0,1,"") -> 
B7: Ide 3
B8: Ide 4
B9: Ide 5
B10: Ide 6
B11: Ide 7
B12: Ide 8
B13: Ide 9
B14: Ide 10
B15: Ide 11
B16: Ide 12
B17: Ide 13
B18: Ide 14
B19: Ide 15
B20: Ide 16
B21: Ide 17
B22: Ide 18
B23: Ide 19
B24: Ide 20
B25: Ide 21
B26: Ide 22
B27: Ide 23
N28: =SUM(N5:N27) -> 0

Sheet OBS2 (hidden)
C2: Udført: | D2: =IF(N28+N6>0,IF((N28>5)*(N6=1),2,1),0) -> 0
B3: Fokusspørgsmål (der skal idegenereres over)
B4: =IF(LEN('3-idegenerering'!C6)=0,"Spørgsmålet hentes automatisk",'3-idegenerering'!C6) -> Spørgsmålet hentes automatisk
B5: Fokusspørgsmål negativt formuleret
N6: =IF(LEN(B6)>0,1,0) -> 0
B7: Ide nr. | C7: Den negative ide | D7: Vendt til brugbar ide
B8: Ide 1 | N8: =IF(ISTEXT(C8)+ISTEXT(D8)=2,1,0) -> 0
B9: Ide 2 | N9: =IF(ISTEXT(C9)+ISTEXT(D9)=2,1,0) -> 0
B10: Ide 3 | N10: 0
B11: Ide 4 | N11: 0
B12: Ide 5 | N12: 0
B13: Ide 6 | N13: 0
B14: Ide 7 | N14: 0
B15: Ide 8 | N15: 0
B16: Ide 9 | N16: 0
B17: Ide 10 | N17: 0
B18: Ide 11 | N18: 0
B19: Ide 12 | N19: 0
B20: Ide 13 | N20: 0
B21: Ide 14 | N21: 0
B22: Ide 15 | N22: 0
B23: Ide 16 | N23: 0
B24: Ide 17 | N24: 0
B25: Ide 18 | N25: 0
B26: Ide 19 | N26: 0
B27: Ide 20 | N27: 0
N28: =SUM(N8:N27) -> 0

Sheet BS3 (hidden)
C2: Udført: | D2: =IF(N28>0,IF(N28>6,2,1),0) -> 0
B3: Fokusspørgsmål (der skal idegenereres over) | D3: Brainstorm
B4: =IF(LEN('3-idegenerering'!C8)=0,"Spørgsmålet hentes automatisk",'3-idegenerering'!C8) -> Spørgsmålet hentes automatisk
B5: Ide 1 | N5: =IF(LEN(C5)>0,1,"") -> 
B6: Ide 2 | N6: =IF(LEN(C6)>0,1,"") -> 
B7: Ide 3
B8: Ide 4
B9: Ide 5
B10: Ide 6
B11: Ide 7
B12: Ide 8
B13: Ide 9
B14: Ide 10
B15: Ide 11
B16: Ide 12
B17: Ide 13
B18: Ide 14
B19: Ide 15
B20: Ide 16
B21: Ide 17
B22: Ide 18
B23: Ide 19
B24: Ide 20
B25: Ide 21
B26: Ide 22
B27: Ide 23
N28: =SUM(N5:N27) -> 0

Sheet OBS3 (hidden)
C2: Udført: | D2: =IF(N28+N6>0,IF((N28>5)*(N6=1),2,1),0) -> 0
B3: Fokusspørgsmål (der skal idegenereres over)
B4: =IF(LEN('3-idegenerering'!C8)=0,"Spørgsmålet hentes automatisk",'3-idegenerering'!C8) -> Spørgsmålet hentes automatisk
B5: Fokusspørgsmål negativt formuleret
N6: =IF(LEN(B6)>0,1,0) -> 0
B7: Ide nr. | C7: Den negative ide | D7: Vendt til brugbar ide
B8: Ide 1 | N8: =IF(ISTEXT(C8)+ISTEXT(D8)=2,1,0) -> 0
B9: Ide 2 | N9: =IF(ISTEXT(C9)+ISTEXT(D9)=2,1,0) -> 0
B10: Ide 3 | N10: 0
B11: Ide 4 | N11: 0
B12: Ide 5 | N12: 0
B13: Ide 6 | N13: 0
B14: Ide 7 | N14: 0
B15: Ide 8 | N15: 0
B16: Ide 9 | N16: 0
B17: Ide 10 | N17: 0
B18: Ide 11 | N18: 0
B19: Ide 12 | N19: 0
B20: Ide 13 | N20: 0
B21: Ide 14 | N21: 0
B22: Ide 15 | N22: 0
B23: Ide 16 | N23: 0
B24: Ide 17 | N24: 0
B25: Ide 18 | N25: 0
B26: Ide 19 | N26: 0
B27: Ide 20 | N27: 0
N28: =SUM(N8:N27) -> 0

Sheet BS4 (hidden)
C2: Udført: | D2: =IF(N28>0,IF(N28>6,2,1),0) -> 0
B3: Fokusspørgsmål (der skal idegenereres over) | D3: Brainstorm
B4: =IF(LEN('3-idegenerering'!C10)=0,"Spørgsmålet hentes automatisk",'3-idegenerering'!C10) -> Spørgsmålet hentes automatisk
B5: Ide 1 | N5: =IF(LEN(C5)>0,1,"") -> 
B6: Ide 2 | N6: =IF(LEN(C6)>0,1,"") -> 
B7: Ide 3
B8: Ide 4
B9: Ide 5
B10: Ide 6
B11: Ide 7
B12: Ide 8
B13: Ide 9
B14: Ide 10
B15: Ide 11
B16: Ide 12
B17: Ide 13
B18: Ide 14
B19: Ide 15
B20: Ide 16
B21: Ide 17
B22: Ide 18
B23: Ide 19
B24: Ide 20
B25: Ide 21
B26: Ide 22
B27: Ide 23
N28: =SUM(N5:N27) -> 0

Sheet OBS4 (hidden)
C2: Udført: | D2: =IF(N28+N6>0,IF((N28>5)*(N6=1),2,1),0) -> 0
B3: Fokusspørgsmål (der skal idegenereres over)
B4: =IF(LEN('3-idegenerering'!C10)=0,"Spørgsmålet hentes automatisk",'3-idegenerering'!C10) -> Spørgsmålet hentes automatisk
B5: Fokusspørgsmål negativt formuleret
N6: =IF(LEN(B6)>0,1,0) -> 0
B7: Ide nr. | C7: Den negative ide | D7: Vendt til brugbar ide
B8: Ide 1 | N8: =IF(ISTEXT(C8)+ISTEXT(D8)=2,1,0) -> 0
B9: Ide 2 | N9: =IF(ISTEXT(C9)+ISTEXT(D9)=2,1,0) -> 0
B10: Ide 3 | N10: 0
B11: Ide 4 | N11: 0
B12: Ide 5 | N12: 0
B13: Ide 6 | N13: 0
B14: Ide 7 | N14: 0
B15: Ide 8 | N15: 0
B16: Ide 9 | N16: 0
B17: Ide 10 | N17: 0
B18: Ide 11 | N18: 0
B19: Ide 12 | N19: 0
B20: Ide 13 | N20: 0
B21: Ide 14 | N21: 0
B22: Ide 15 | N22: 0
B23: Ide 16 | N23: 0
B24: Ide 17 | N24: 0
B25: Ide 18 | N25: 0
B26: Ide 19 | N26: 0
B27: Ide 20 | N27: 0
N28: =SUM(N8:N27) -> 0

Sheet BS5 (hidden)
C2: Udført: | D2: =IF(N28>0,IF(N28>6,2,1),0) -> 0
B3: Fokusspørgsmål (der skal idegenereres over) | D3: Brainstorm
B4: =IF(LEN('3-idegenerering'!C12)=0,"Spørgsmålet hentes automatisk",'3-idegenerering'!C12) -> Spørgsmålet hentes automatisk
B5: Ide 1 | N5: =IF(LEN(C5)>0,1,"") -> 
B6: Ide 2 | N6: =IF(LEN(C6)>0,1,"") -> 
B7: Ide 3
B8: Ide 4
B9: Ide 5
B10: Ide 6
B11: Ide 7
B12: Ide 8
B13: Ide 9
B14: Ide 10
B15: Ide 11
B16: Ide 12
B17: Ide 13
B18: Ide 14
B19: Ide 15
B20: Ide 16
B21: Ide 17
B22: Ide 18
B23: Ide 19
B24: Ide 20
B25: Ide 21
B26: Ide 22
B27: Ide 23
N28: =SUM(N5:N27) -> 0

Sheet OBS5 (hidden)
C2: Udført: | D2: =IF(N28+N6>0,IF((N28>5)*(N6=1),2,1),0) -> 0
B3: Fokusspørgsmål (der skal idegenereres over)
B4: =IF(LEN('3-idegenerering'!C12)=0,"Spørgsmålet hentes automatisk",'3-idegenerering'!C12) -> Spørgsmålet hentes automatisk
B5: Fokusspørgsmål negativt formuleret
N6: =IF(LEN(B6)>0,1,0) -> 0
B7: Ide nr. | C7: Den negative ide | D7: Vendt til brugbar ide
B8: Ide 1 | N8: =IF(ISTEXT(C8)+ISTEXT(D8)=2,1,0) -> 0
B9: Ide 2 | N9: =IF(ISTEXT(C9)+ISTEXT(D9)=2,1,0) -> 0
B10: Ide 3 | N10: 0
B11: Ide 4 | N11: 0
B12: Ide 5 | N12: 0
B13: Ide 6 | N13: 0
B14: Ide 7 | N14: 0
B15: Ide 8 | N15: 0
B16: Ide 9 | N16: 0
B17: Ide 10 | N17: 0
B18: Ide 11 | N18: 0
B19: Ide 12 | N19: 0
B20: Ide 13 | N20: 0
B21: Ide 14 | N21: 0
B22: Ide 15 | N22: 0
B23: Ide 16 | N23: 0
B24: Ide 17 | N24: 0
B25: Ide 18 | N25: 0
B26: Ide 19 | N26: 0
B27: Ide 20 | N27: 0
N28: =SUM(N8:N27) -> 0

Sheet spg1 (hidden)
B2: Udført: | C2: =IF(M2>0,IF(M2>20,2,1),0) -> 0 | M2: =LEN(B13) -> 0
B3: Fokusspørgsmål (der skal idegenereres over)
B4: =IF(LEN('3-idegenerering'!C4)=0,"Spørgsmålet hentes automatisk",'3-idegenerering'!C4) -> Spørgsmålet hentes automatisk
B5: 3 vilde ideer, der kan udbygges
B6: =IF(LEN('3-idegenerering'!C15)=0,"Ide hentes automatisk",'3-idegenerering'!C15) -> Ide hentes automatisk
B7: =IF(LEN('3-idegenerering'!C16)=0,"Ide hentes automatisk",'3-idegenerering'!C16) -> Ide hentes automatisk
B8: =IF(LEN('3-idegenerering'!C17)=0,"Ide hentes automatisk",'3-idegenerering'!C17) -> Ide hentes automatisk
B9: Tegninger: forslag til design
B12: Beskrivelse af VALGT forslag til design

Sheet spg2 (hidden)
B2: Udført: | C2: =IF(M2>0,IF(M2>20,2,1),0) -> 0 | M2: =LEN(B13) -> 0
B3: Fokusspørgsmål (der skal idegenereres over)
B4: =IF(LEN('3-idegenerering'!C6)=0,"Spørgsmålet hentes automatisk",'3-idegenerering'!C6) -> Spørgsmålet hentes automatisk
B5: 3 vilde ideer, der kan udbygges
B6: =IF(LEN('3-idegenerering'!C18)=0,"Ide hentes automatisk",'3-idegenerering'!C18) -> Ide hentes automatisk
B7: =IF(LEN('3-idegenerering'!C19)=0,"Ide hentes automatisk",'3-idegenerering'!C19) -> Ide hentes automatisk
B8: =IF(LEN('3-idegenerering'!C20)=0,"Ide hentes automatisk",'3-idegenerering'!C20) -> Ide hentes automatisk
B9: Tegninger: forslag til design
B12: Beskrivelse af VALGT forslag til design

Sheet spg3 (hidden)
B2: Udført: | C2: =IF(M2>0,IF(M2>20,2,1),0) -> 0 | M2: =LEN(B13) -> 0
B3: Fokusspørgsmål (der skal idegenereres over)
B4: =IF(LEN('3-idegenerering'!C8)=0,"Spørgsmålet hentes automatisk",'3-idegenerering'!C8) -> Spørgsmålet hentes automatisk
B5: 3 vilde ideer, der kan udbygges
B6: =IF(LEN('3-idegenerering'!C21)=0,"Ide hentes automatisk",'3-idegenerering'!C21) -> Ide hentes automatisk
B7: =IF(LEN('3-idegenerering'!C22)=0,"Ide hentes automatisk",'3-idegenerering'!C22) -> Ide hentes automatisk
B8: =IF(LEN('3-idegenerering'!C23)=0,"Ide hentes automatisk",'3-idegenerering'!C23) -> Ide hentes automatisk
B9: Tegninger: forslag til design
B12: Beskrivelse af VALGT forslag til design

Sheet spg4 (hidden)
B2: Udført: | C2: =IF(M2>0,IF(M2>20,2,1),0) -> 0 | M2: =LEN(B13) -> 0
B3: Fokusspørgsmål (der skal idegenereres over)
B4: =IF(LEN('3-idegenerering'!C10)=0,"Spørgsmålet hentes automatisk",'3-idegenerering'!C10) -> Spørgsmålet hentes automatisk
B5: 3 vilde ideer, der kan udbygges
B6: =IF(LEN('3-idegenerering'!C24)=0,"Ide hentes automatisk",'3-idegenerering'!C24) -> Ide hentes automatisk
B7: =IF(LEN('3-idegenerering'!C25)=0,"Ide hentes automatisk",'3-idegenerering'!C25) -> Ide hentes automatisk
B8: =IF(LEN('3-idegenerering'!C26)=0,"Ide hentes automatisk",'3-idegenerering'!C26) -> Ide hentes automatisk
B9: Tegninger: forslag til design
B12: Beskrivelse af VALGT forslag til design

Sheet spg5 (hidden)
B2: Udført: | C2: =IF(M2>0,IF(M2>20,2,1),0) -> 0 | M2: =LEN(B13) -> 0
B3: Fokusspørgsmål (der skal idegenereres over)
B4: =IF(LEN('3-idegenerering'!C12)=0,"Spørgsmålet hentes automatisk",'3-idegenerering'!C12) -> Spørgsmålet hentes automatisk
B5: 3 vilde ideer, der kan udbygges
B6: =IF(LEN('3-idegenerering'!C27)=0,"Ide hentes automatisk",'3-idegenerering'!C27) -> Ide hentes automatisk
B7: =IF(LEN('3-idegenerering'!C28)=0,"Ide hentes automatisk",'3-idegenerering'!C28) -> Ide hentes automatisk
B8: =IF(LEN('3-idegenerering'!C29)=0,"Ide hentes automatisk",'3-idegenerering'!C29) -> Ide hentes automatisk
B9: Tegninger: forslag til design
B12: Beskrivelse af VALGT forslag til design

Sheet Produktide (hidden)
B2: Udført: | C2: =IF(M2>0,IF(M2>20,2,1),0) -> 0 | M2: =LEN(B9) -> 0
B3: Produktide
B4: =IF(LEN('3-idegenerering'!C31)=0,"Produktide hentes automatisk",'3-idegenerering'!C31) -> Produktide hentes automatisk
B5: Tegninger: forslag til endeligt design
B8: Beskrivelse af VALGT forslag til design

Sheet Nytteværdi (hidden)
B2: Udført: | C2: =IF(M2>0,IF(M2>3,2,1),0) -> 0 | M2: =SUM(M6:M11) -> 0
B3: Indfør de egenskaber, I har fundet ud af, produktet skal have, og analyser for hver egenskab, hvilken nytte brugeren vil få af produktet
B4: =IF(LEN('3-idegenerering'!C31)=0,"Produktide hentes automatisk",'3-idegenerering'!C31) -> Produktide hentes automatisk
B5: Egenskaber | C5: Nytteværdi for brugeren
M6: =ISTEXT(B6)*ISTEXT(C6) -> 0
M7: =ISTEXT(B7)*ISTEXT(C7) -> 0
M8: 0
M9: 0
M10: 0
M11: 0

Sheet Købsadfærd (hidden)
F2: Udført: | G2: =IF(N28>0,IF(N28>18,2,1),0) -> 0
B3: Købsadfærd
B4: Generel købsbeslutning (Hvilke økonomiske overvejelser har kunden før købet)
N5: =ISTEXT(B5)*1 -> 0
B6: Konkret købsbeslutning (Hvilke alternative produkttyper kan kunden købe)
N7: =ISTEXT(B7)*1 -> 0
B8: Udvælgelsesbeslutning (Hvilke konkurrenter kan kunden vælge)
N9: =ISTEXT(B9)*1 -> 0
B10: Teknisk købsformidling (hvilke services kan vi yde kunden under selve købet)
N11: =ISTEXT(B11)*1 -> 0
B12: Persona (Beskriv den person, du mener helt sikkert vil købe dit produkt)
B13: Alder | D13: Køn | F13: Indkomst | N13: =ISTEXT(C13)*ISTEXT(E13)*ISTEXT(G13) -> 0
B14: Personlighed | N14: =ISTEXT(C14)*1 -> 0
B15: Job og uddannelse | N15: =ISTEXT(C15)*1 -> 0
B16: Fritids-aktiviteter | N16: 0
B17: Familieforhold | N17: 0
B18: Venner og socialt liv | N18: 0
B19: Hvad giver status | N19: 0
B20: Placering i målgruppen
B21: Minerva | N21: =ISTEXT(C21)*1 -> 0
B22: Conzoom | N22: =ISTEXT(C22)*1 -> 0
B23: Målgruppens størrelse
B24: Minerva | N24: =ISTEXT(C24)*1 -> 0
B25: Conzoom | N25: =ISTEXT(C25)*1 -> 0
B26: Identificer konkurrenter, vurder konkurrenterne | G26: skydeskive modellen | H26: =Skydeskivemodel!C2 -> 0
B27: Foretag en swot-analyse | G27: Swot | H27: =Swot!C2 -> 0
N28: =SUM(N5:N25)+H26+H27 -> 0

Sheet Skydeskivemodel (hidden)
B2: Udført: | C2: =IF(M13>0,IF(M13>3,2,1),0) -> 0
B3: Skydeskivemodel Indsæt dine konkurrenter på skydeskiven
B5: Samme produkt. Beskriv produkterne og konkurrenterne (alt hvad du kan finde)
M6: =ISTEXT(B6) -> FALSE
B7: Lignende produkter. Beskriv produkterne og konkurrenterne (alt hvad du kan finde)
M8: =ISTEXT(B8)*1 -> 0
B9: Løsninger på problemet. Beskriv produkterne og konkurrenterne (alt hvad du kan finde)
M10: =ISTEXT(B10)*1 -> 0
B11: Hvad kan/vil en i målgruppen købe for dit produkts pris?
M12: =ISTEXT(B12)*1 -> 0
M13: =SUM(M6:M12) -> 0

Sheet Swot (hidden)
B2: Udført: | C2: =IF(M19>0,IF(M19>6,2,1),0) -> 0
B3: Hvem har økonomiske muskler af jeres konkurrenter (hvad har I)
M4: =ISTEXT(B4)*1 -> 0
B5: Er der nogen, der vil føle, I har taget deres design (retssager truer)
M6: =ISTEXT(B6)*1 -> 0
B7: Er der patent på noget af det, I vil arbejde med (retssager truer)
M8: =ISTEXT(B8)*1 -> 0
B9: Hvem løser problemet bedst (prisen er ligegyldig)
M10: =ISTEXT(B10)*1 -> 0
B11: Har I gode leverandørforbindelser (priser/forsyningssikkerhed)
M12: =ISTEXT(B12)*1 -> 0
B13: Har I gode afsætningskanaler (likes er ikke godt nok; har I aftaler)
M14: =ISTEXT(B14)*1 -> 0
B15: Styrker (internt) | C15: Svagheder (internt)
M16: =ISTEXT(B16)*ISTEXT(C16) -> 0
B17: Muligheder (eksternt) | C17: Trusler (eksternt)
M18: =ISTEXT(B18)*ISTEXT(C18) -> 0
M19: =SUM(M4:M18) -> 0

Sheet Fysisk_produkt (hidden)
G2: Udført: | H2: =IF(N36>0,IF(N36>23,2,1),0) -> 0
B3: Formuler krav til produktet
B4: Krav til produktets funktion (Service, oplukkelighed, justerbarhed, løfteevne)
B5: Du må vægte hver af kravene med 1-5
B6: 1 | F6: 2 | L6: =ISTEXT(C6)*ISNUMBER(E6) -> 0 | M6: =ISTEXT(G6)*ISNUMBER(H6) -> 0
B7: Krav til produktets kvalitet (Overflader, materialer, holdbarhed)
B8: 3 | F8: 4 | L8: =ISTEXT(C8)*ISNUMBER(E8) -> 0 | M8: =ISTEXT(G8)*ISNUMBER(H8) -> 0
B9: Krav til produktets design (overflader, farver, organiske former, formsprog)
B10: 5 | F10: 6 | L10: 0 | M10: 0
B11: Produktionsvenlighed (Proceskendskab, rådighed over værktøj, egne evner, tidsforbrug)
B12: 7 | F12: 8 | L12: 0 | M12: 0
B13: Opstil 3 løsningsforslag | H13: Score | N13: =SUM(L6:M12) -> 0 | O13: Bør være 8
G14: Skitse 1 | H14: =Skitse1!H26 -> 0 | I14: =Skitse1!H2 -> 0
G15: Skitse 2 | H15: =Skitse2!H27 -> 0 | I15: =Skitse2!H3 -> 0
G16: Skitse 3 | H16: =Skitse3!H28 -> 0 | I16: =Skitse3!H4 -> 0 | N16: =SUM(I14:I16) -> 0 | O16: Bør være 6
B17: Anvendelse af naturvidenskabelig viden i (funktion eller fremstilling)
B18: Matematik
B19: Fx geometri | L19: =ISTEXT(D18)*1 -> 0
B20: Fysik | L20: =ISTEXT(D19)*1 -> 0
B21: Biologi | L21: 0
B22: Kemi | L22: 0
B23: Beskriv valget af løsning med udgangspunkt i Scorecard
L24: 0
B25: Udfør en teknologivurdering Vurder, hvilken af de tre modeller der giver mest mening for dit produkts indflydelse på samfundet). Du behøver kun lave den ene!
E26: Teknologisk helhedsvurdering | I26: =Helhedsvurdering!C2 -> 0
E27: Konstruktiv vurdering | I27: =Konstruktiv!C2 -> 0 | L27: =IF(SUM(I26:I27)>2,2,SUM(I26:I27)) -> 0 | N27: =SUM(L19:L27) -> 0 | O27: bør være 7
E28: Konsekvenser | I28: =konsekvens!D2 -> 0
B29: Undersøgelse af muligheder og trusler
B30: Love/regler
B31: Produktet kan komme i problemer med | L31: =ISTEXT(D30)*1 -> 0
B32: Moralske problemstillinger
B33: Produktet kan komme i problemer med | L33: =ISTEXT(D32)*1 -> 0
B34: Patenter eller designbeskyttelse | L34: =ISTEXT(D34)*1 -> 0
B35: Det kunne også være lignende produkter | N35: =SUM(L31:L34) -> 0 | O35: Bør være 3
N36: =N35+N27+N16+N13 -> 0

Sheet konsekvens (hidden)
C2: Udført: | D2: =IF(H4>0,IF(H4>4,2,1),0) -> 0
B3: Teknologivurdering som konsekvensvurdering
B4: Positive | C4: Negative | H4: =SUM(H5:I10) -> 0
H5: =ISTEXT(B5)*1 -> 0 | I5: =ISTEXT(C5)*1 -> 0
B6: Bedøm konsekvenserne
B7: Heldige konsekvenser | C7: Uheldige konsekvenser
H8: =ISTEXT(B8)*1 -> 0 | I8: =ISTEXT(C8)*1 -> 0
B9: Hvilke løsninger kan afhjælpe de negative konsekvenser
H10: =ISTEXT(B10)*1 -> 0

Sheet Skitse1 (hidden)
G2: Udført: | H2: =IF(N17>0,IF(N17>5,2,1),0) -> 0
B3: Formuler krav til produktet
B4: Giv point for, hvor godt produktet udfylder dine krav (du må give 1, 3, 9)
B5: 1 | C5: =Fysisk_produkt!C6 ->  | F5: 2 | G5: =Fysisk_produkt!G6 ->  | N5: =ISNUMBER(E5)*ISNUMBER(H5) -> 0
B6: Krav til produktets kvalitet (overflader, materialer, holdbarhed),
B7: 3 | C7: =Fysisk_produkt!C8 ->  | F7: 4 | G7: =Fysisk_produkt!G8 ->  | N7: =ISNUMBER(E7)*ISNUMBER(H7) -> 0
B8: Krav til produktets design (overflader, farver, organiske former, formsprog)
B9: 5 | C9: =Fysisk_produkt!C10 ->  | F9: 6 | G9: =Fysisk_produkt!G10 ->  | N9: 0
B10: Produktionsvenlighed (proceskendskab, rådighed over værktøj, egne evner, tidsforbrug)
B11: 7 | C11: =Fysisk_produkt!C12 ->  | F11: 8 | G11: =Fysisk_produkt!G12 ->  | N11: 0
B12: Skitse af produkt, der udfylder dine krav
N13: =ISTEXT(B13)*1 -> 0
B14: Beskrivelse af produktet
N15: =ISTEXT(B15)*1 -> 0
B16: Grafisk fremstilling af (Krav point * Opfyldelsespoint)
D17: Vægt | F17: Point | H17: V*P | N17: =SUM(N5:N15) -> 0
B18: =Fysisk_produkt!C6 ->  | D18: =IF(ISNUMBER(Fysisk_produkt!E6),Fysisk_produkt!E6,0) -> 0 | F18: =IF(ISNUMBER(E5),E5,0) -> 0 | H18: =D18*F18 -> 0
B19: =Fysisk_produkt!G6 ->  | D19: =IF(ISNUMBER(Fysisk_produkt!H6),Fysisk_produkt!H6,0) -> 0 | F19: =IF(ISNUMBER(G5),G5,0) -> 0 | H19: =D19*F19 -> 0
B20: =Fysisk_produkt!C8 ->  | D20: =IF(ISNUMBER(Fysisk_produkt!E8),Fysisk_produkt!E8,0) -> 0 | F20: =IF(ISNUMBER(E7),E7,0) -> 0 | H20: 0
B21: =Fysisk_produkt!G8 ->  | D21: =IF(ISNUMBER(Fysisk_produkt!H8),Fysisk_produkt!H8,0) -> 0 | F21: =IF(ISNUMBER(G7),G7,0) -> 0 | H21: 0
B22: =Fysisk_produkt!C10 ->  | D22: =IF(ISNUMBER(Fysisk_produkt!E10),Fysisk_produkt!E10,0) -> 0 | F22: 0 | H22: 0
B23: =Fysisk_produkt!G10 ->  | D23: =IF(ISNUMBER(Fysisk_produkt!H10),Fysisk_produkt!H10,0) -> 0 | F23: =IF(ISNUMBER(G9),G9,0) -> 0 | H23: 0
B24: =Fysisk_produkt!C12 ->  | D24: =IF(ISNUMBER(Fysisk_produkt!E12),Fysisk_produkt!E12,0) -> 0 | F24: 0 | H24: 0
B25: =Fysisk_produkt!G12 ->  | D25: =IF(ISNUMBER(Fysisk_produkt!H12),Fysisk_produkt!H12,0) -> 0 | F25: =IF(ISNUMBER(G11),G11,0) -> 0 | H25: 0
G26: Samlet score | H26: =SUM(H18:H25) -> 0
B30: Indsæt en graf her, der viser scoren fordelt på kravene

Sheet Skitse2 (hidden)
G2: Udført: | H2: =IF(N17>0,IF(N17>5,2,1),0) -> 0
B3: Formuler krav til produktet
B4: Giv point for, hvor godt produktet udfylder dine krav (du må give 1, 3, 9)
B5: 1 | C5: =Fysisk_produkt!C6 ->  | F5: 2 | G5: =Fysisk_produkt!G6 ->  | N5: =ISNUMBER(E5)*ISNUMBER(H5) -> 0
B6: Krav til produktets kvalitet (overflader, materialer, holdbarhed),
B7: 3 | C7: =Fysisk_produkt!C8 ->  | F7: 4 | G7: =Fysisk_produkt!G8 ->  | N7: =ISNUMBER(E7)*ISNUMBER(H7) -> 0
B8: Krav til produktets design (overflader, farver, organiske former, formsprog)
B9: 5 | C9: =Fysisk_produkt!C10 ->  | F9: 6 | G9: =Fysisk_produkt!G10 ->  | N9: 0
B10: Produktionsvenlighed (proceskendskab, rådighed over værktøj, egne evner, tidsforbrug)
B11: 7 | C11: =Fysisk_produkt!C12 ->  | F11: 8 | G11: =Fysisk_produkt!G12 ->  | N11: 0
B12: Skitse af produkt, der udfylder dine krav
N13: =ISTEXT(B13)*1 -> 0
B14: Beskrivelse af produktet
N15: =ISTEXT(B15)*1 -> 0
B16: Grafisk fremstilling af (Krav point * Opfyldelsespoint)
D17: Vægt | F17: Point | H17: V*P | N17: =SUM(N5:N15) -> 0
B18: =Fysisk_produkt!C6 ->  | D18: =IF(ISNUMBER(Fysisk_produkt!E6),Fysisk_produkt!E6,0) -> 0 | F18: =IF(ISNUMBER(E5),E5,0) -> 0 | H18: =D18*F18 -> 0
B19: =Fysisk_produkt!G6 ->  | D19: =IF(ISNUMBER(Fysisk_produkt!H6),Fysisk_produkt!H6,0) -> 0 | F19: =IF(ISNUMBER(G5),G5,0) -> 0 | H19: =D19*F19 -> 0
B20: =Fysisk_produkt!C8 ->  | D20: =IF(ISNUMBER(Fysisk_produkt!E8),Fysisk_produkt!E8,0) -> 0 | F20: =IF(ISNUMBER(E7),E7,0) -> 0 | H20: 0
B21: =Fysisk_produkt!G8 ->  | D21: =IF(ISNUMBER(Fysisk_produkt!H8),Fysisk_produkt!H8,0) -> 0 | F21: =IF(ISNUMBER(G7),G7,0) -> 0 | H21: 0
B22: =Fysisk_produkt!C10 ->  | D22: =IF(ISNUMBER(Fysisk_produkt!E10),Fysisk_produkt!E10,0) -> 0 | F22: 0 | H22: 0
B23: =Fysisk_produkt!G10 ->  | D23: =IF(ISNUMBER(Fysisk_produkt!H10),Fysisk_produkt!H10,0) -> 0 | F23: =IF(ISNUMBER(G9),G9,0) -> 0 | H23: 0
B24: =Fysisk_produkt!C12 ->  | D24: =IF(ISNUMBER(Fysisk_produkt!E12),Fysisk_produkt!E12,0) -> 0 | F24: 0 | H24: 0
B25: =Fysisk_produkt!G12 ->  | D25: =IF(ISNUMBER(Fysisk_produkt!H12),Fysisk_produkt!H12,0) -> 0 | F25: =IF(ISNUMBER(G11),G11,0) -> 0 | H25: 0
G26: Samlet score | H26: =SUM(H18:H25) -> 0
B30: Indsæt en graf her, der viser scoren fordelt på kravene

Sheet Skitse3 (hidden)
G2: Udført: | H2: =IF(N17>0,IF(N17>5,2,1),0) -> 0
B3: Formuler krav til produktet
B4: Giv point for, hvor godt produktet udfylder dine krav (du må give 1, 3, 9)
B5: 1 | C5: =Fysisk_produkt!C6 ->  | F5: 2 | G5: =Fysisk_produkt!G6 ->  | N5: =ISNUMBER(E5)*ISNUMBER(H5) -> 0
B6: Krav til produktets kvalitet (overflader, materialer, holdbarhed),
B7: 3 | C7: =Fysisk_produkt!C8 ->  | F7: 4 | G7: =Fysisk_produkt!G8 ->  | N7: =ISNUMBER(E7)*ISNUMBER(H7) -> 0
B8: Krav til produktets design (overflader, farver, organiske former, formsprog)
B9: 5 | C9: =Fysisk_produkt!C10 ->  | F9: 6 | G9: =Fysisk_produkt!G10 ->  | N9: 0
B10: Produktionsvenlighed (proceskendskab, rådighed over værktøj, egne evner, tidsforbrug)
B11: 7 | C11: =Fysisk_produkt!C12 ->  | F11: 8 | G11: =Fysisk_produkt!G12 ->  | N11: 0
B12: Skitse af produkt, der udfylder dine krav
N13: =ISTEXT(B13)*1 -> 0
B14: Beskrivelse af produktet
N15: =ISTEXT(B15)*1 -> 0
B16: Grafisk fremstilling af (Krav point * Opfyldelsespoint)
D17: Vægt | F17: Point | H17: V*P | N17: =SUM(N5:N15) -> 0
B18: =Fysisk_produkt!C6 ->  | D18: =IF(ISNUMBER(Fysisk_produkt!E6),Fysisk_produkt!E6,0) -> 0 | F18: =IF(ISNUMBER(E5),E5,0) -> 0 | H18: =D18*F18 -> 0
B19: =Fysisk_produkt!G6 ->  | D19: =IF(ISNUMBER(Fysisk_produkt!H6),Fysisk_produkt!H6,0) -> 0 | F19: =IF(ISNUMBER(G5),G5,0) -> 0 | H19: =D19*F19 -> 0
B20: =Fysisk_produkt!C8 ->  | D20: =IF(ISNUMBER(Fysisk_produkt!E8),Fysisk_produkt!E8,0) -> 0 | F20: =IF(ISNUMBER(E7),E7,0) -> 0 | H20: 0
B21: =Fysisk_produkt!G8 ->  | D21: =IF(ISNUMBER(Fysisk_produkt!H8),Fysisk_produkt!H8,0) -> 0 | F21: =IF(ISNUMBER(G7),G7,0) -> 0 | H21: 0
B22: =Fysisk_produkt!C10 ->  | D22: =IF(ISNUMBER(Fysisk_produkt!E10),Fysisk_produkt!E10,0) -> 0 | F22: 0 | H22: 0
B23: =Fysisk_produkt!G10 ->  | D23: =IF(ISNUMBER(Fysisk_produkt!H10),Fysisk_produkt!H10,0) -> 0 | F23: =IF(ISNUMBER(G9),G9,0) -> 0 | H23: 0
B24: =Fysisk_produkt!C12 ->  | D24: =IF(ISNUMBER(Fysisk_produkt!E12),Fysisk_produkt!E12,0) -> 0 | F24: 0 | H24: 0
B25: =Fysisk_produkt!G12 ->  | D25: =IF(ISNUMBER(Fysisk_produkt!H12),Fysisk_produkt!H12,0) -> 0 | F25: =IF(ISNUMBER(G11),G11,0) -> 0 | H25: 0
G26: Samlet score | H26: =SUM(H18:H25) -> 0
B30: Indsæt en graf, her der viser scoren fordelt på kravene

Sheet Helhedsvurdering (hidden)
B2: Udført: | C2: =IF(G10>0,IF(G10>2,2,1),0) -> 0
B3: Teknologivurdering som helhedsvurdering
B4: Beskriv de funktioner, teknologien har i forhold til brugerens og samfundets behov
G5: =ISTEXT(B5)*1 -> 0
B6: Foreslå forskellige teknologier, der dækker disse behov
G7: =ISTEXT(B7)*1 -> 0
B8: Hvilke fordele og ulemper er der ved de forskellige teknologier?
G9: 0
G10: =SUM(G5:G9) -> 0

Sheet Konstruktiv (hidden)
B2: Udført: | C2: =IF(H16>0,IF(H16>4,2,1),0) -> 0
B3: Teknologivurdering som konstruktiv vurdering
B4: (tag udgangspunkt i muligheden for skabe en bedre løsning for samfundet ved samarbejde med aktører)
B5: Analyser problemstillingen
H6: =ISTEXT(B6)*ISTEXT(C6) -> 0
B7: Angiv forskellige løsninger til problemet
H8: =ISTEXT(B8)*1 -> 0
B9: Positive konsekvenser | C9: Negative konsekvenser
H10: =ISTEXT(B10)*ISTEXT(C10) -> 0
B11: Efter diskussion med aktører har vi fundet, at følgende skal revideres på vores produkt
H12: =ISTEXT(B12)*1 -> 0
B13: Beskriv, hvordan ovennævnte forslag kan komme samfundet til gavn
H14: =ISTEXT(B14)*1 -> 0
H16: =SUM(H6:H14) -> 0

Sheet Produktspecifikation (hidden)
F2: Udført: | G2: =IF(M34>0,IF(M34>14,2,1),0) -> 0
B3: Opstil detaljerede krav til produktløsningen på baggrund af de krav, der blev stillet til det generelle produkt i afsnit 5
B4: Beskriv krav til produktets funktion (hårde/bløde) krav
B5: 1 | M5: =ISTEXT(C5)*1 -> 0
B6: 2 | M6: =ISTEXT(C6)*1 -> 0
B7: Beskriv krav til produktets design (hårde/bløde) krav
B8: 1 | M8: 0
B9: 2 | M9: 0
B10: Beskriv krav til produktets miljøprofil (hårde/bløde) krav
B11: 1 | M11: 0
B12: 2 | M12: 0
B13: Undersøg betingelserne for fremstilling af produktløsning
B14: Hvilke fremstillingsmetoder har I rådighed over (hvor er erstatninger nødvendige)
M15: =ISTEXT(B15)*1 -> 0
B16: Hvilke materialer har I rådighed over (hvor er erstatninger nødvendige)
M17: 0
B18: Benchmarking (vælg et produkt, du vil hente vigtige egenskaber/inspiration fra)
B19: Valgt produkt | F19: Fabrikat | M19: =ISTEXT(D19)*ISTEXT(G19) -> 0
B20: Beskriv de egenskaber ved produktet, du vil lade dig inspirere af
M21: =ISTEXT(B21)*1 -> 0
B22: Opstil produktspecifikation | M22: 0
B23: Dimensioner | M23: =ISTEXT(E23)*1 -> 0
B24: mm, mL, kg, andet
B26: Designkrav | M26: =ISTEXT(E26)*1 -> 0
B27: Farver, formudtryk
B29: Ydelse | M29: =ISTEXT(E29)*1 -> 0
B30: (Køre 50 km/L benzin)
B32: Service/miljøkrav | M32: =ISTEXT(E32)*1 -> 0
B33: (Olieskift pr. 30.000)
M34: =SUM(M5:M32) -> 0

Sheet Fysisk_konstruktion (hidden)
H2: Udført: | I2: =IF(N5>0,IF(N5>4,2,1),0) -> 0
B3: Beskriv, hvilke enkeltdele produktet ender med at bestå af
C4: Beskriv delen i en linje og gå derefter til filen med linket til højre
B5: Del 1 | C5: Stikben, der skal gå i stikkontakten, skal laves runde med rigtig afstand og diameter | J5: ='Del1'!C2 -> 0 | N5: =SUMIF(J5:J10,"=2") -> 0
B6: Del 2 | J6: ='Del2'!C3 -> 0
B7: Del 3 | J7: ='Del3'!C4 -> 0
B8: Del 4 | J8: ='Del4'!C5 -> 0
B9: Del 5 | J9: ='Del5'!C6 -> 0
B10: Del 6 | J10: ='Del6'!C7 -> 0 | N10: =SUM(J5:J10) -> 0
B11: Samlingstegning: med numre for hver del
B12: Samlingstegningen kan være håndtegnet, skannet eller fotograferet ind
B13: Materiale-/stykliste
B14: Beskrivelse | D14: Leverandør | E14: Varenummer | F14: Antal | G14: Pris pr. enhed | H14: Andel | I14: pris

Sheet Del1 (hidden)
B2: Udført: | C2: =IF(F22>0,IF(F22>4,2,1),0) -> 0
B3: Beskriv nedenstående enkeltdel:
B4: =Fysisk_konstruktion!C5 -> Stikben, der skal gå i stikkontakten, skal laves runde med rigtig afstand og diameter
B5: Hvilket materiale
B6: Skal enkeltdelen fremstilles i | F6: =ISTEXT(C5)*1 -> 0
B7: Stål, krydsfiner, lister, elektronik
B8: Hvilke samlinger
B9: Har enkeltdelen med andre dele, | F9: =ISTEXT(C8)*1 -> 0
B10: Og hvordan skal de udføres
B11: Skruer, søm , nitter, svejsninger, lim,
B12: Hvilke grovprocesser | F12: =ISTEXT(C12)*1 -> 0
B13: Bukning, klipning, boring, skæring…
B15: Hvilke overfladebehandlinger | F15: =ISTEXT(C15)*1 -> 0
B16: Slibning, maling, bejdsning, lakering
B17: Arbejdstegning : med mål og tegningshovede
B18: Arbejdstegningen kan være fra et tegneprogram, eller den kan være håndtegnet og skannet eller fotograferet ind
B19: Beskrivelse af enkeltdel
F20: =ISTEXT(B20)*1 -> 0
F22: =SUM(F1:F20) -> 0

Sheet Del2 (hidden)
B2: Udført: | C2: =IF(F22>0,IF(F22>4,2,1),0) -> 0
B3: Beskriv nedenstående enkeltdel:
B4: =Fysisk_konstruktion!C6 -> 
B5: Hvilket materiale
B6: Skal enkeltdelen fremstilles i | F6: =ISTEXT(C5)*1 -> 0
B7: Stål, krydsfiner, lister, elektronik
B8: Hvilke samlinger
B9: Har enkeltdelen med andre dele, | F9: =ISTEXT(C8)*1 -> 0
B10: Og hvordan skal de udføres
B11: Skruer, søm , nitter, svejsninger, lim,
B12: Hvilke grovprocesser | F12: =ISTEXT(C12)*1 -> 0
B13: Bukning, klipning, boring, skæring…
B15: Hvilke overfladebehandlinger | F15: =ISTEXT(C15)*1 -> 0
B16: Slibning, maling, bejdsning, lakering
B17: Arbejdstegning : med mål og tegningshovede
B18: Arbejdstegningen kan være fra et tegneprogram, eller den kan være håndtegnet og skannet eller fotograferet ind
B19: Beskrivelse af enkeltdel
F20: =ISTEXT(B20)*1 -> 0
F22: =SUM(F1:F20) -> 0

Sheet Del3 (hidden)
B2: Udført: | C2: =IF(F22>0,IF(F22>4,2,1),0) -> 0
B3: Beskriv nedenstående enkeltdel:
B4: =Fysisk_konstruktion!C7 -> 
B5: Hvilket materiale
B6: Skal enkeltdelen fremstilles i | F6: =ISTEXT(C5)*1 -> 0
B7: Stål, krydsfiner, lister, elektronik
B8: Hvilke samlinger
B9: Har enkeltdelen med andre dele, | F9: =ISTEXT(C8)*1 -> 0
B10: Og hvordan skal de udføres
B11: Skruer, søm , nitter, svejsninger, lim,
B12: Hvilke grovprocesser | F12: =ISTEXT(C12)*1 -> 0
B13: Bukning, klipning, boring, skæring…
B15: Hvilke overfladebehandlinger | F15: =ISTEXT(C15)*1 -> 0
B16: Slibning, maling, bejdsning, lakering
B17: Arbejdstegning : med mål og tegningshovede
B18: Arbejdstegningen kan være fra et tegneprogram, eller den kan være håndtegnet og skannet eller fotograferet ind
B19: Beskrivelse af enkeltdel
F20: =ISTEXT(B20)*1 -> 0
F22: =SUM(F1:F20) -> 0

Sheet Del4 (hidden)
B2: Udført: | C2: =IF(F22>0,IF(F22>4,2,1),0) -> 0
B3: Beskriv nedenstående enkeltdel:
B4: =Fysisk_konstruktion!C8 -> 
B5: Hvilket materiale
B6: Skal enkeltdelen fremstilles i | F6: =ISTEXT(C5)*1 -> 0
B7: Stål, krydsfiner, lister, elektronik
B8: Hvilke samlinger
B9: Har enkeltdelen med andre dele, | F9: =ISTEXT(C8)*1 -> 0
B10: Og hvordan skal de udføres
B11: Skruer, søm , nitter, svejsninger, lim,
B12: Hvilke grovprocesser | F12: =ISTEXT(C12)*1 -> 0
B13: Bukning, klipning, boring, skæring…
B15: Hvilke overfladebehandlinger | F15: =ISTEXT(C15)*1 -> 0
B16: Slibning, maling, bejdsning, lakering
B17: Arbejdstegning : med mål og tegningshovede
B18: Arbejdstegningen kan være fra et tegneprogram, eller den kan være håndtegnet og skannet eller fotograferet ind
B19: Beskrivelse af enkeltdel
F20: =ISTEXT(B20)*1 -> 0
F22: =SUM(F1:F20) -> 0

Sheet Del5 (hidden)
B2: Udført: | C2: =IF(F22>0,IF(F22>4,2,1),0) -> 0
B3: Beskriv nedenstående enkeltdel:
B4: =Fysisk_konstruktion!C9 -> 
B5: Hvilket materiale
B6: Skal enkeltdelen fremstilles i | F6: =ISTEXT(C5)*1 -> 0
B7: Stål, krydsfiner, lister, elektronik
B8: Hvilke samlinger
B9: Har enkeltdelen med andre dele, | F9: =ISTEXT(C8)*1 -> 0
B10: Og hvordan skal de udføres
B11: Skruer, søm , nitter, svejsninger, lim,
B12: Hvilke grovprocesser | F12: =ISTEXT(C12)*1 -> 0
B13: Bukning, klipning, boring, skæring…
B15: Hvilke overfladebehandlinger | F15: =ISTEXT(C15)*1 -> 0
B16: Slibning, maling, bejdsning, lakering
B17: Arbejdstegning : med mål og tegningshovede
B18: Arbejdstegningen kan være fra et tegneprogram, eller den kan være håndtegnet og skannet eller fotograferet ind
B19: Beskrivelse af enkeltdel
F20: =ISTEXT(B20)*1 -> 0
F22: =SUM(F1:F20) -> 0

Sheet Del6 (hidden)
B2: Udført: | C2: =IF(F22>0,IF(F22>4,2,1),0) -> 0
B3: Beskriv nedenstående enkeltdel:
B4: =Fysisk_konstruktion!C10 -> 
B5: Hvilket materiale
B6: Skal enkeltdelen fremstilles i | F6: =ISTEXT(C5)*1 -> 0
B7: Stål, krydsfiner, lister, elektronik
B8: Hvilke samlinger
B9: Har enkeltdelen med andre dele, | F9: =ISTEXT(C8)*1 -> 0
B10: Og hvordan skal de udføres
B11: Skruer, søm , nitter, svejsninger, lim,
B12: Hvilke grovprocesser | F12: =ISTEXT(C12)*1 -> 0
B13: Bukning, klipning, boring, skæring…
B15: Hvilke overfladebehandlinger | F15: =ISTEXT(C15)*1 -> 0
B16: Slibning, maling, bejdsning, lakering
B17: Arbejdstegning : med mål og tegningshovede
B18: Arbejdstegningen kan være fra et tegneprogram, eller den kan være håndtegnet og skannet eller fotograferet ind
B19: Beskrivelse af enkeltdel
F20: =ISTEXT(B20)*1 -> 0
F22: =SUM(F1:F20) -> 0

Sheet Fremstilling (hidden)
J2: Udført: | K2: =IF(T39>0,IF(T39>4,2,1),0) -> 0
B3: Fremstilling og test af øvestykker og enkeltdele
B4: Del 1 | C4: Beskrivelse | Q4: =ISTEXT(D4)*1 -> 0
B5: Processer | C5: 1 | D5: 2 | F5: 3 | H5: 4 | I5: 5 | Q5: =IF(R5>3,1,0) -> 0 | R5: =ISTEXT(C5)+ISTEXT(D5)+ISTEXT(F5)+ISTEXT(H5)+ISTEXT(I5) -> 0
B6: Procestid | C6: Sek | D6: Sek | F6: Sek | H6: Sek | I6: Sek | Q6: =IF(R6>3,1,0) -> 0 | R6: =ISNUMBER(C6)+ISNUMBER(D6)+ISNUMBER(F6)+ISNUMBER(H6)+ISNUMBER(I6) -> 0
B7: Proceseffekt | C7: Watt | D7: Watt | F7: Watt | H7: Watt | I7: Watt | Q7: =IF(R7>3,1,0) -> 0 | R7: =ISNUMBER(C7)+ISNUMBER(D7)+ISNUMBER(F7)+ISNUMBER(H7)+ISNUMBER(I7) -> 0
B8: Øvestykker | C8: Beskrivelse | I8: Antal | Q8: =ISTEXT(D8)*ISNUMBER(K8) -> 0
B9: Øvestykke godkendt | D9: Ja | E9: nej | G9: Enkeltemne godkendt | I9: Ja | K9: nej
B10: Del 2 | C10: Beskrivelse | Q10: =ISTEXT(D10)*1 -> 0
B11: Processer | C11: 1 | D11: 2 | F11: 3 | H11: 4 | I11: 5 | Q11: =IF(R11>3,1,0) -> 0 | R11: =ISTEXT(C11)+ISTEXT(D11)+ISTEXT(F11)+ISTEXT(H11)+ISTEXT(I11) -> 0
B12: Procestid | C12: Sek | D12: Sek | F12: Sek | H12: Sek | I12: Sek | Q12: =IF(R12>3,1,0) -> 0 | R12: =ISNUMBER(C12)+ISNUMBER(D12)+ISNUMBER(F12)+ISNUMBER(H12)+ISNUMBER(I12) -> 0
B13: Proceseffekt | C13: Watt | D13: Watt | F13: Watt | H13: Watt | I13: Watt | Q13: =IF(R13>3,1,0) -> 0 | R13: =ISNUMBER(C13)+ISNUMBER(D13)+ISNUMBER(F13)+ISNUMBER(H13)+ISNUMBER(I13) -> 0
B14: Øvestykker | C14: Beskrivelse | I14: Antal | Q14: =ISTEXT(D14)*ISNUMBER(K14) -> 0
B15: Øvestykke godkendt | D15: Ja | E15: nej | G15: Enkeltemne godkendt | I15: Ja | K15: nej
B16: Del 3 | C16: Beskrivelse | Q16: =ISTEXT(D16)*1 -> 0
B17: Processer | C17: 1 | D17: 2 | F17: 3 | H17: 4 | I17: 5 | Q17: =IF(R17>3,1,0) -> 0 | R17: =ISTEXT(C17)+ISTEXT(D17)+ISTEXT(F17)+ISTEXT(H17)+ISTEXT(I17) -> 0
B18: Procestid | C18: Sek | D18: Sek | F18: Sek | H18: Sek | I18: Sek | Q18: =IF(R18>3,1,0) -> 0 | R18: =ISNUMBER(C18)+ISNUMBER(D18)+ISNUMBER(F18)+ISNUMBER(H18)+ISNUMBER(I18) -> 0
B19: Proceseffekt | C19: Watt | D19: Watt | F19: Watt | H19: Watt | I19: Watt | Q19: =IF(R19>3,1,0) -> 0 | R19: =ISNUMBER(C19)+ISNUMBER(D19)+ISNUMBER(F19)+ISNUMBER(H19)+ISNUMBER(I19) -> 0
B20: Øvestykker | C20: Beskrivelse | I20: Antal | Q20: =ISTEXT(D20)*ISNUMBER(K20) -> 0
B21: Øvestykke godkendt | D21: Ja | E21: nej | G21: Enkeltemne godkendt | I21: Ja | K21: nej
B22: Del 4 | C22: Beskrivelse | Q22: =ISTEXT(D22)*1 -> 0
B23: Processer | C23: 1 | D23: 2 | F23: 3 | H23: 4 | I23: 5 | Q23: =IF(R23>3,1,0) -> 0 | R23: =ISTEXT(C23)+ISTEXT(D23)+ISTEXT(F23)+ISTEXT(H23)+ISTEXT(I23) -> 0
B24: Procestid | C24: Sek | D24: Sek | F24: Sek | H24: Sek | I24: Sek | Q24: =IF(R24>3,1,0) -> 0 | R24: =ISNUMBER(C24)+ISNUMBER(D24)+ISNUMBER(F24)+ISNUMBER(H24)+ISNUMBER(I24) -> 0
B25: Proceseffekt | C25: Watt | D25: Watt | F25: Watt | H25: Watt | I25: Watt | Q25: =IF(R25>3,1,0) -> 0 | R25: =ISNUMBER(C25)+ISNUMBER(D25)+ISNUMBER(F25)+ISNUMBER(H25)+ISNUMBER(I25) -> 0
B26: Øvestykker | C26: Beskrivelse | I26: Antal | Q26: =ISTEXT(D26)*ISNUMBER(K26) -> 0
B27: Øvestykke godkendt | D27: Ja | E27: nej | G27: Enkeltemne godkendt | I27: Ja | K27: nej
B28: Del 5 | C28: Beskrivelse | Q28: =ISTEXT(D28)*1 -> 0
B29: Processer | C29: 1 | D29: 2 | F29: 3 | H29: 4 | I29: 5 | Q29: =IF(R29>3,1,0) -> 0 | R29: =ISTEXT(C29)+ISTEXT(D29)+ISTEXT(F29)+ISTEXT(H29)+ISTEXT(I29) -> 0
B30: Procestid | C30: Sek | D30: Sek | F30: Sek | H30: Sek | I30: Sek | Q30: =IF(R30>3,1,0) -> 0 | R30: =ISNUMBER(C30)+ISNUMBER(D30)+ISNUMBER(F30)+ISNUMBER(H30)+ISNUMBER(I30) -> 0
B31: Proceseffekt | C31: Watt | D31: Watt | F31: Watt | H31: Watt | I31: Watt | Q31: =IF(R31>3,1,0) -> 0 | R31: =ISNUMBER(C31)+ISNUMBER(D31)+ISNUMBER(F31)+ISNUMBER(H31)+ISNUMBER(I31) -> 0
B32: Øvestykker | C32: Beskrivelse | I32: Antal | Q32: =ISTEXT(D32)*ISNUMBER(K32) -> 0
B33: Øvestykke godkendt | D33: Ja | E33: nej | G33: Enkeltemne godkendt | I33: ja | K33: nej | T33: =SUM(Q4:Q32) -> 0
B34: Konstruer ud fra jeres data en tidsplan/et gantt kort | L34: =Aktivitetsplan!K2 -> 0
B35: Konstruer ud fra jeres data en aktivitetsplan | L35: =Aktivitetsplan!K2 -> 0
B36: Opfylder produktet jeres kravspecifikation | I36: Ja | J36: nej
B37: Giv forslag til forbedringer
Q38: =ISTEXT(B38)*1 -> 0 | T38: =IF(T33>15,1,0) -> 0
T39: =L34+L35+T38 -> 0

Sheet Aktivitetsplan (hidden)
B1: Om denne plan:
B2: Hvis planen kun indeholder arbejdsprocesser og tidsrum, er det en tidsplan. | J2: Udført: | K2: =IF(K54>0,IF(K54>4,2,1),0) -> 0
B3: Hvis planen også indeholder angivelse af, hvilke personer der udfører processerne, er det en aktivitetsplan.
A4: Tidsplan | L4: Tidsramme
A5: Post nr. | B5: Beskrivelse | J5: Ansvarlig | K5: Tids- Type | L5: 1 | M5: 2 | N5: 3 | O5: 4 | P5: 5 | Q5: 6 | R5: 7 | S5: 8 | T5: 9 | U5: 10 | V5: 11 | W5: 12 | X5: 13 | Y5: 14 | Z5: 15 | AA5: 16 | AB5: 17
A6: 1
A7: 2
A8: 3
A9: 4
A10: 5
A11: 6
A12: 7
A13: 8
A14: 9
A15: 10
A16: 11
A17: 12
A18: 13
B21: Ansvarlig | F21: Tids-type | H21: Tidsmål
B22: Navn | D22: Initialer
B23: Stefan Hedemann | D23: STH | F23: Transport | G23: T
B24: Lene Ros Irson | D24: LRI | F24: Process | G24: P
B25: Tina Irma Frost | D25: TIF | F25: Lager | G25: L
B26: Svend Hildingsø | D26: SVH | F26: Ventetid | G26: V
K41: =ISTEXT(B6)*1 -> 0
K42: =ISTEXT(B7)*1 -> 0
K43: 0
K44: 0
K45: 0
K46: 0
K47: 0
K48: 0
K49: 0
K50: 0
K51: 0
K52: 0
K53: 0
K54: =SUM(K41:K53) -> 0

Sheet Teknologi-analyse (hidden)
O2: Udført: | R2: =IF(Z34>0,IF(Z34>10,2,1),0) -> 0
B3: Detaljeret beskrivelse af PRODUKTET
B4: Funktioner i produktet
Z5: =ISTEXT(B5)*1 -> 0
B6: Anvendte materialer Alle materialer skal med (lim, maling, olie, tekstil ...)
Z8: =ISTEXT(B8)*1 -> 0
B9: VIDEN der knytter sig til produktet
B10: Materialeegenskaber Hvad kan materialet (varme/kulde, fugt, samling, bøjning, skæring, ledningsevne, magnetisme ...)
Z11: =ISTEXT(B11)*1 -> 0
B12: Proceskendskab Hvilke processer kan benyttes (udskæring, drejning, sammenføjning, boring, syning, omrøring, slibning, maling ….)
Z13: =ISTEXT(B13)*1 -> 0
B14: Viden fra andre gymnasiefag (idehistorie, komm/it, design, kemi, fysik, biologi, matematik ….)
Z15: =ISTEXT(B15)*1 -> 0
B16: TEKNIK der knytter sig til produktet
B17: Fremstilling Hvilke fremstillingsmaskiner/værktøj vil I anvende, når produktet skal fremstilles/hvilke bruger industrien
Z18: =ISTEXT(B18)*1 -> 0
B19: Håndtering Hvordan håndteres: enkeltdele i produktion, produktet på vej til forbrugeren. Hvordan pakkes produktet
Z20: =ISTEXT(B20)*1 -> 0
B21: Kontrol Hvilken teknik vil I anvende for at kontrollere, at enkeltdele og det samlede produkt er i orden/hvordan gør industrien
Z22: =ISTEXT(B22)*1 -> 0
B23: Organisation Vis i nedenstående skema, hvilke processer der kommer i hvilken rækkefølge
B24: Lad en proces fylde en boks.
Z25: =ISTEXT(B25)*1 -> 0
Z26: =ISTEXT(B26)*1 -> 0
Z27: =ISTEXT(B27)*1 -> 0
Z28: 0
Z29: 0
Z30: 0
Z31: 0
Z32: 0
Z34: =SUM(Z3:Z32) -> 0

Sheet Miljøvurdering (hidden)
E2: Udført: | F2: =IF(L17>0,IF(L17>5,2,1),0) -> 0
B3: Redegør for hvad du vil undersøge, og hvad du vil bruge din miljøvurdering til
B4: Redegørelse... | L4: =IF(B4="Redegørelse...",0,1) -> 0
B5: Indskriv produktets livscyklus i formularen
B6: livscyklus analyse | G6: =Livscyklus!E2 -> 0 | L6: =G6 -> 0
B7: Vurder hvilke miljøeffekter de enkelte delprocesser medfører - tilret din livscyklus analyse
B9: Hvordan kan disse miljøeffekter undgås?
L10: =ISTEXT(B10)*1 -> 0
B11: Beskriv ændringer i designet, der vil mindske betydningen af miljøeffekterne
L12: =ISTEXT(B12)*1 -> 0
B13: Opdel miljøeffekterne i de enkelte faser efter MEKA-princippet: materialer, energi, kemikalier og andet
B14: Konkluder på din miljøvurdering
L15: =ISTEXT(B15)*1 -> 0
L17: =SUM(L4:L15) -> 0

Sheet Livscyklus (hidden)
D2: Udført: | E2: =IF(I3>0,IF(I3>4,2,1),0) -> 0
B3: Råmaterialer | C3: Produktion | D3: Brugsfasen | E3: Bortskaffelse | I3: =SUM(I4:I8) -> 0
I4: =ISTEXT(B4)*1 + ISTEXT(C4)*1 + ISTEXT(D4)*1 + ISTEXT(E4)*1 -> 0
B5: Transport i relation til denne fase
I6: =ISTEXT(B6)*1 + ISTEXT(C6)*1 + ISTEXT(D6)*1 + ISTEXT(E6)*1 -> 0
B7: Sammendrag af de vigtigste miljøpåvirkninger i produktets levetid
I8: =ISTEXT(B8)*1 -> 0
I9: =ISTEXT(B9)*1 -> 0
I11: =SUM(I3:I10) -> 0

Sheet Produktmodning (hidden)
C2: Udført: | D2: =IF(J26>0,IF(J26>17,2,1),0) -> 0
B3: Test af din prototype | D3: Brainstorm
B4: Funktion 1, der skal testes | E4: =Funktionstest_1!C2 -> 0 | J4: =ISTEXT(C4)*1 -> 1
B5: Funktion 2, der skal testes | E5: =Funktionstest_2!C2 -> 0 | J5: =ISTEXT(C5)*1 -> 1
B6: Holdbarhed 1, der skal testes | E6: =Holdbarhedstest_1!C2 -> 0 | J6: 1
B7: Holdbarhed 2, der skal testes | E7: =Holdbarhedstest_2!C2 -> 0 | J7: 1
B8: Sammendrag af resultaterne af dine tests
B9: Funktion 1 | C9: =IF(ISTEXT(Funktionstest_1!B24),Funktionstest_1!B24,"Hentes automatisk") -> Hentes automatisk
B10: Funktion 2 | C10: =IF(ISTEXT(Funktionstest_2!B25),Funktionstest_2!B25,"Hentes automatisk") -> Hentes automatisk
B11: Holdbarhed 1 | C11: =IF(ISTEXT(Holdbarhedstest_1!B21),Holdbarhedstest_1!B21,"Hentes automatisk") -> Hentes automatisk
B12: Holdbarhed 2 | C12: =IF(ISTEXT(Holdbarhedstest_2!B21),Holdbarhedstest_2!B21,"Hentes automatisk") -> Hentes automatisk
B13: Tag prototypen med ud til fokusgruppen, og spørg til deres meninger | E13: =Kundeevaluering!D2 -> 0
B14: Konklussion på kundernes tilbagemelding
J15: =ISTEXT(B15)*1 -> 0
B16: Udfyld et House of Quality | E16: =House_of_Quality!AC2 -> 0
J18: =ISTEXT(B18)*1 -> 0
B19: Beskriv, prioriter kundeønsker og tegn det endelige produkt | E19: =Endeligt_produkt!D2 -> 0
B20: Hvordan har produktet ændret sig?
J21: =ISTEXT(B21)*1 -> 0
B22: Design en emballage til produktet | E22: =Emballage!C2 -> 0
B23: Hvordan har produktet påvirket designet af emballage?
J24: =ISTEXT(B24)*1 -> 0
J26: =SUM(J15:J24,E4:E22) -> 0

Sheet Funktionstest_1 (hidden)
B2: Udført: | C2: =IF(I25>0,IF(I25>15,2,1),0) -> 0
B3: Definition af test
B4: =Produktmodning!C4 -> 
B5: Relevante krav opstillet i 5. Produktløsning | I5: =ISTEXT(C5)*1 -> 0
B6: Relevante krav opstillet i 6. Produktspecifikation | I6: =ISTEXT(C6)*1 -> 0
B7: Beskrivelse af test | I7: 0
B8: Skitser din testopstilling
B10: Antal gentagelser | I10: =ISNUMBER(C10)*1 -> 0
B11: Beskriv dine forventninger til testen | I11: =ISTEXT(C11)*1 -> 0
B12: Beskriv effektiviteten af funktionen | I12: =ISTEXT(C12)*1 -> 0
B13: Beskriv lyde og mislyde ved funktionen | I13: 0
B14: Beskriv eventuelle slidmærker efter test | I14: 0
B15: Beskriv steder, hvor der opstår varme | I15: 0
B16: Beskriv eventuelle sikkerheds-risici | I16: 0
B17: Resultat af test
B18: Levede produktet op til relevante krav opstillet i 5. Produktløsning? | I18: 0
B19: Levede produktet op til relevante krav opstillet i 6. Produktspecifikation? | I19: 0
B20: Beskriv, hvad i testen der kan betragtes som en succes | I20: 0
B21: Beskriv, hvad i testen der ikke kan betragtes som en succes | I21: 0
B22: Beskriv, hvad du kan gøre bedre i produktet eller testen | I22: 0
B23: Konklussion på test
I24: =ISTEXT(B24)*1 -> 0
I25: =SUM(I5:I24) -> 0

Sheet Funktionstest_2 (hidden)
B2: Udført: | C2: =IF(I25>0,IF(I25>15,2,1),0) -> 0
B3: Definition af test
B4: =Produktmodning!C5 -> 
B5: Relevante krav opstillet i 5. Produktløsning | I5: =ISTEXT(C5)*1 -> 0
B6: Relevante krav opstillet i 6. Produktspecifikation | I6: =ISTEXT(C6)*1 -> 0
B7: Beskrivelse af test | I7: 0
B8: Skitser din testopstilling
B10: Antal gentagelser | I10: =ISNUMBER(C10)*1 -> 0
B11: Beskriv dine forventninger til testen | I11: =ISTEXT(C11)*1 -> 0
B12: Beskriv effektiviteten af funktionen | I12: =ISTEXT(C12)*1 -> 0
B13: Beskriv lyde og mislyde ved funktionen | I13: 0
B14: Beskriv eventuelle slidmærker efter test | I14: 0
B15: Beskriv steder, hvor der opstår varme | I15: 0
B16: Beskriv eventuelle sikkerheds-risici | I16: 0
B17: Resultat af test
B18: Levede produktet op til relevante krav opstillet i 5. Produktløsning? | I18: 0
B19: Levede produktet op til relevante krav opstillet i 6. Produktspecifikation? | I19: 0
B20: Beskriv, hvad i testen der kan betragtes som en succes | I20: 0
B21: Beskriv, hvad i testen der ikke kan betragtes som en succes | I21: 0
B22: Beskriv, hvad du kan gøre bedre i produktet eller testen | I22: 0
B23: Konklussion på test
I24: =ISTEXT(B24)*1 -> 0
I25: =SUM(I5:I24) -> 0

Sheet Holdbarhedstest_1 (hidden)
B2: Udført: | C2: =IF(I22>0,IF(I22>12,2,1),0) -> 0
B3: Definition af test
B4: =Produktmodning!C6 -> 
B5: Relevante krav opstillet i 5. Produktløsning | I5: =ISTEXT(C5)*1 -> 0
B6: Relevante krav opstillet i 6. Produktspecifikation | I6: =ISTEXT(C6)*1 -> 0
B7: Beskrivelse af test | I7: 0
B8: Skitser din testopstilling
B10: Beskriv dine forventninger til testen | I10: =ISTEXT(C10)*1 -> 0
B11: Beskrivelse af belastning | I11: =ISTEXT(C11)*1 -> 0
B12: Størrelse af belastning | I12: =ISTEXT(C12)*1 -> 0
B13: Antal gentagelser | I13: =ISNUMBER(C13)*1 -> 0
B14: Resultat af test
B15: Levede produktet op til relevante krav opstillet i 5. Produktløsning? | I15: 0
B16: Levede produktet op til relevante krav opstillet i 6. Produktspecifikation? | I16: 0
B17: Beskriv, hvad i testen der kan betragtes som en succes | I17: 0
B18: Beskriv, hvad i testen der ikke kan betragtes som en succes | I18: 0
B19: Beskriv, hvad du kan gøre bedre i produktet eller testen | I19: 0
B20: Konklussion på test
I21: =ISTEXT(B21)*1 -> 0
I22: =SUM(I5:I21) -> 0

Sheet Holdbarhedstest_2 (hidden)
B2: Udført: | C2: =IF(I22>0,IF(I22>12,2,1),0) -> 0
B3: Definition af test
B4: =Produktmodning!C7 -> 
B5: Relevante krav opstillet i 5. Produktløsning | I5: =ISTEXT(C5)*1 -> 0
B6: Relevante krav opstillet i 6. Produktspecifikation | I6: =ISTEXT(C6)*1 -> 0
B7: Beskrivelse af test | I7: 0
B8: Skitser din testopstilling
B10: Beskriv dine forventninger til testen | I10: =ISTEXT(C10)*1 -> 0
B11: Beskrivelse af belastning | I11: =ISTEXT(C11)*1 -> 0
B12: Størrelse af belastning | I12: =ISTEXT(C12)*1 -> 0
B13: Antal gentagelser | I13: =ISNUMBER(C13)*1 -> 0
B14: Resultat af test
B15: Levede produktet op til relevante krav opstillet i 5. Produktløsning? | I15: 0
B16: Levede produktet op til relevante krav opstillet i 6. Produktspecifikation? | I16: 0
B17: Beskriv, hvad i testen der kan betragtes som en succes | I17: 0
B18: Beskriv, hvad i testen der ikke kan betragtes som en succes | I18: 0
B19: Beskriv, hvad du kan gøre bedre i produktet eller testen | I19: 0
B20: Konklussion på test
I21: =ISTEXT(B21)*1 -> 0
I22: =SUM(I5:I21) -> 0

Sheet Kundeevaluering (hidden)
C2: Udført: | D2: =IF(I24>0,IF(I24>10,2,1),0) -> 0
B3: Kundens evaluering af produktet (Den flyvende prototype)
B5: Hvilket produkt vil du umiddelbart sammenligne dette produkt med
I6: =ISTEXT(B6)*1 -> 0
B7: Dit umiddelbare indtryk af produktet (6 er bedst, 1 er ringest)
B8: Er produktet kønt i forhold til tilsvarende produkter | I8: =ISNUMBER(D8)*1 -> 0
B9: Er produktet anvendeligt i forhold til tilsvarende produkter | I9: =ISNUMBER(D9)*1 -> 0
B10: Er det nemt at anvende produktet i forhold til tilsvarende produkter | I10: 0
B11: Anser du produktet for holdbart i forhold til tilsvarende produkter | I11: 0
B12: Anser du produktet for holdbart i forhold til tilsvarende produkter | I12: 0
B13: Hvad er din umiddelbare mening om produktet
I14: =ISTEXT(B14)*1 -> 0
B15: Beskriv, hvilke egenskaber du finder tiltrækkende/frastødende ved produktet
B16: Tiltrækkende egenskaber | I16: =ISTEXT(C16)*1 -> 0
B17: Frastødende egenskaber | I17: =ISTEXT(C17)*1 -> 0
B18: Hvilke egenskaber/funktioner ville du ønske blev lagt ind i produktet
I19: =ISTEXT(B19)*1 -> 0
B20: Hvor høj en pris ville du være parat til at ofre for produktet
I21: =ISTEXT(B21)*1 -> 0
I24: =SUM(I6:I23) -> 0

Sheet House_of_Quality (hidden)
AB2: Udført: | AC2: =IF(SUM(H22:AE31)>0,IF(SUM(H22:AE31)>20,2,1),0) -> 0
B3: Skitser din test opstilling
B4: Udfyld nedenstående skema med House of Quality. Du kan se et et eksempel på et udfyldt skema på det næste faneblad, og du kan også få hjælp til udfyldelsen af en interaktiv guide på linket:
B5: http://elsmar.com/pdf_files/QFD-Tutorial.swf
B7: Produkt
AH8: Beregninger
AH10: =House_of_Quality!H$22*House_of_Quality!$G23*House_of_Quality!H23 -> 0 | AI10: =House_of_Quality!K$22*House_of_Quality!$G23*House_of_Quality!K23 -> 0 | AJ10: =House_of_Quality!N$22*House_of_Quality!$G23*House_of_Quality!N23 -> 0 | AK10: =House_of_Quality!Q$22*House_of_Quality!$G23*House_of_Quality!Q23 -> 0 | AL10: =House_of_Quality!T$22*House_of_Quality!$G23*House_of_Quality!T23 -> 0 | AM10: =House_of_Quality!W$22*House_of_Quality!$G23*House_of_Quality!W23 -> 0 | AN10: =House_of_Quality!Z$22*House_of_Quality!$G23*House_of_Quality!Z23 -> 0 | AO10: =House_of_Quality!AC$22*House_of_Quality!$G23*House_of_Quality!AC23 -> 0
AH11: =House_of_Quality!H$22*House_of_Quality!$G24*House_of_Quality!H24 -> 0 | AI11: =House_of_Quality!K$22*House_of_Quality!$G24*House_of_Quality!K24 -> 0 | AJ11: =House_of_Quality!N$22*House_of_Quality!$G24*House_of_Quality!N24 -> 0 | AK11: =House_of_Quality!Q$22*House_of_Quality!$G24*House_of_Quality!Q24 -> 0 | AL11: =House_of_Quality!T$22*House_of_Quality!$G24*House_of_Quality!T24 -> 0 | AM11: =House_of_Quality!W$22*House_of_Quality!$G24*House_of_Quality!W24 -> 0 | AN11: =House_of_Quality!Z$22*House_of_Quality!$G24*House_of_Quality!Z24 -> 0 | AO11: =House_of_Quality!AC$22*House_of_Quality!$G24*House_of_Quality!AC24 -> 0
AH12: =House_of_Quality!H$22*House_of_Quality!$G25*House_of_Quality!H25 -> 0 | AI12: =House_of_Quality!K$22*House_of_Quality!$G25*House_of_Quality!K25 -> 0 | AJ12: =House_of_Quality!N$22*House_of_Quality!$G25*House_of_Quality!N25 -> 0 | AK12: =House_of_Quality!Q$22*House_of_Quality!$G25*House_of_Quality!Q25 -> 0 | AL12: =House_of_Quality!T$22*House_of_Quality!$G25*House_of_Quality!T25 -> 0 | AM12: =House_of_Quality!W$22*House_of_Quality!$G25*House_of_Quality!W25 -> 0 | AN12: =House_of_Quality!Z$22*House_of_Quality!$G25*House_of_Quality!Z25 -> 0 | AO12: =House_of_Quality!AC$22*House_of_Quality!$G25*House_of_Quality!AC25 -> 0
B13: dato | AH13: =House_of_Quality!H$22*House_of_Quality!$G26*House_of_Quality!H26 -> 0 | AI13: =House_of_Quality!K$22*House_of_Quality!$G26*House_of_Quality!K26 -> 0 | AJ13: =House_of_Quality!N$22*House_of_Quality!$G26*House_of_Quality!N26 -> 0 | AK13: =House_of_Quality!Q$22*House_of_Quality!$G26*House_of_Quality!Q26 -> 0 | AL13: =House_of_Quality!T$22*House_of_Quality!$G26*House_of_Quality!T26 -> 0 | AM13: =House_of_Quality!W$22*House_of_Quality!$G26*House_of_Quality!W26 -> 0 | AN13: =House_of_Quality!Z$22*House_of_Quality!$G26*House_of_Quality!Z26 -> 0 | AO13: =House_of_Quality!AC$22*House_of_Quality!$G26*House_of_Quality!AC26 -> 0
AH14: =House_of_Quality!H$22*House_of_Quality!$G27*House_of_Quality!H27 -> 0 | AI14: =House_of_Quality!K$22*House_of_Quality!$G27*House_of_Quality!K27 -> 0 | AJ14: =House_of_Quality!N$22*House_of_Quality!$G27*House_of_Quality!N27 -> 0 | AK14: =House_of_Quality!Q$22*House_of_Quality!$G27*House_of_Quality!Q27 -> 0 | AL14: =House_of_Quality!T$22*House_of_Quality!$G27*House_of_Quality!T27 -> 0 | AM14: =House_of_Quality!W$22*House_of_Quality!$G27*House_of_Quality!W27 -> 0 | AN14: =House_of_Quality!Z$22*House_of_Quality!$G27*House_of_Quality!Z27 -> 0 | AO14: =House_of_Quality!AC$22*House_of_Quality!$G27*House_of_Quality!AC27 -> 0
AH15: =House_of_Quality!H$22*House_of_Quality!$G28*House_of_Quality!H28 -> 0 | AI15: =House_of_Quality!K$22*House_of_Quality!$G28*House_of_Quality!K28 -> 0 | AJ15: =House_of_Quality!N$22*House_of_Quality!$G28*House_of_Quality!N28 -> 0 | AK15: =House_of_Quality!Q$22*House_of_Quality!$G28*House_of_Quality!Q28 -> 0 | AL15: =House_of_Quality!T$22*House_of_Quality!$G28*House_of_Quality!T28 -> 0 | AM15: =House_of_Quality!W$22*House_of_Quality!$G28*House_of_Quality!W28 -> 0 | AN15: =House_of_Quality!Z$22*House_of_Quality!$G28*House_of_Quality!Z28 -> 0 | AO15: =House_of_Quality!AC$22*House_of_Quality!$G28*House_of_Quality!AC28 -> 0
AH16: =House_of_Quality!H$22*House_of_Quality!$G29*House_of_Quality!H29 -> 0 | AI16: =House_of_Quality!K$22*House_of_Quality!$G29*House_of_Quality!K29 -> 0 | AJ16: =House_of_Quality!N$22*House_of_Quality!$G29*House_of_Quality!N29 -> 0 | AK16: =House_of_Quality!Q$22*House_of_Quality!$G29*House_of_Quality!Q29 -> 0 | AL16: =House_of_Quality!T$22*House_of_Quality!$G29*House_of_Quality!T29 -> 0 | AM16: =House_of_Quality!W$22*House_of_Quality!$G29*House_of_Quality!W29 -> 0 | AN16: =House_of_Quality!Z$22*House_of_Quality!$G29*House_of_Quality!Z29 -> 0 | AO16: =House_of_Quality!AC$22*House_of_Quality!$G29*House_of_Quality!AC29 -> 0
AH17: =House_of_Quality!H$22*House_of_Quality!$G30*House_of_Quality!H30 -> 0 | AI17: =House_of_Quality!K$22*House_of_Quality!$G30*House_of_Quality!K30 -> 0 | AJ17: =House_of_Quality!N$22*House_of_Quality!$G30*House_of_Quality!N30 -> 0 | AK17: =House_of_Quality!Q$22*House_of_Quality!$G30*House_of_Quality!Q30 -> 0 | AL17: =House_of_Quality!T$22*House_of_Quality!$G30*House_of_Quality!T30 -> 0 | AM17: =House_of_Quality!W$22*House_of_Quality!$G30*House_of_Quality!W30 -> 0 | AN17: =House_of_Quality!Z$22*House_of_Quality!$G30*House_of_Quality!Z30 -> 0 | AO17: =House_of_Quality!AC$22*House_of_Quality!$G30*House_of_Quality!AC30 -> 0
AH18: =House_of_Quality!H$22*House_of_Quality!$G31*House_of_Quality!H31 -> 0 | AI18: =House_of_Quality!K$22*House_of_Quality!$G31*House_of_Quality!K31 -> 0 | AJ18: =House_of_Quality!N$22*House_of_Quality!$G31*House_of_Quality!N31 -> 0 | AK18: =House_of_Quality!Q$22*House_of_Quality!$G31*House_of_Quality!Q31 -> 0 | AL18: =House_of_Quality!T$22*House_of_Quality!$G31*House_of_Quality!T31 -> 0 | AM18: =House_of_Quality!W$22*House_of_Quality!$G31*House_of_Quality!W31 -> 0 | AN18: =House_of_Quality!Z$22*House_of_Quality!$G31*House_of_Quality!Z31 -> 0 | AO18: =House_of_Quality!AC$22*House_of_Quality!$G31*House_of_Quality!AC31 -> 0
B19: Retning af forbedring | H19: 0 | K19: 0 | N19: 0 | Q19: 0 | T19: 0 | W19: 0 | Z19: 0 | AC19: 0 | AH19: =SUM(AH10:AH18) -> 0 | AI19: 0 | AJ19: 0 | AK19: 0 | AL19: 0 | AM19: 0 | AN19: 0 | AO19: 0
E20: Tekniske krav | G20: Vigtighed for kunden | H20: Funktion | Q20: Sortiement | W20: Teknisk | AH20: =SUM(AH19:AO19) -> 0
B22: Kunde krav
B23: Krav til Klatre-sele | C23: Funktion
C27: Brugbarhed
D32: Teknisk prioritet
D33: Procent af den samlede
D34: Enhed
D35: Design Mål
D36: Teknisk benchmarking | E36: Vores Produkt
E37: Konkurrent A´s produkt
E38: Konkurrent b´s produkt
D39: 9 | E39: Stærk overensstemmelse
D40: 3 | E40: Middel overensstemmelse
D41: 1 | E41: Svag overensstemmelse
D42: 0 | E42: Ingen overensstemmelse

Sheet Eks_House_of_Quality (hidden)
D1: EKSEMPEL
A4: Produkt
A5: Faldsele til klatrebrug | AG5: Beregninger
AG7: =Eks_House_of_Quality!G$19*Eks_House_of_Quality!$F20*Eks_House_of_Quality!G20 -> 0 | AH7: =Eks_House_of_Quality!J$19*Eks_House_of_Quality!$F20*Eks_House_of_Quality!J20 -> 0 | AI7: =Eks_House_of_Quality!M$19*Eks_House_of_Quality!$F20*Eks_House_of_Quality!M20 -> 729 | AJ7: =Eks_House_of_Quality!P$19*Eks_House_of_Quality!$F20*Eks_House_of_Quality!P20 -> 0 | AK7: =Eks_House_of_Quality!S$19*Eks_House_of_Quality!$F20*Eks_House_of_Quality!S20 -> 0 | AL7: =Eks_House_of_Quality!V$19*Eks_House_of_Quality!$F20*Eks_House_of_Quality!V20 -> 0 | AM7: =Eks_House_of_Quality!Y$19*Eks_House_of_Quality!$F20*Eks_House_of_Quality!Y20 -> 0 | AN7: =Eks_House_of_Quality!AB$19*Eks_House_of_Quality!$F20*Eks_House_of_Quality!AB20 -> 0
AG8: =Eks_House_of_Quality!G$19*Eks_House_of_Quality!$F21*Eks_House_of_Quality!G21 -> 0 | AH8: =Eks_House_of_Quality!J$19*Eks_House_of_Quality!$F21*Eks_House_of_Quality!J21 -> 243 | AI8: =Eks_House_of_Quality!M$19*Eks_House_of_Quality!$F21*Eks_House_of_Quality!M21 -> 243 | AJ8: =Eks_House_of_Quality!P$19*Eks_House_of_Quality!$F21*Eks_House_of_Quality!P21 -> 0 | AK8: =Eks_House_of_Quality!S$19*Eks_House_of_Quality!$F21*Eks_House_of_Quality!S21 -> 0 | AL8: =Eks_House_of_Quality!V$19*Eks_House_of_Quality!$F21*Eks_House_of_Quality!V21 -> 243 | AM8: =Eks_House_of_Quality!Y$19*Eks_House_of_Quality!$F21*Eks_House_of_Quality!Y21 -> 0 | AN8: =Eks_House_of_Quality!AB$19*Eks_House_of_Quality!$F21*Eks_House_of_Quality!AB21 -> 0
AG9: =Eks_House_of_Quality!G$19*Eks_House_of_Quality!$F22*Eks_House_of_Quality!G22 -> 0 | AH9: =Eks_House_of_Quality!J$19*Eks_House_of_Quality!$F22*Eks_House_of_Quality!J22 -> 0 | AI9: =Eks_House_of_Quality!M$19*Eks_House_of_Quality!$F22*Eks_House_of_Quality!M22 -> 243 | AJ9: =Eks_House_of_Quality!P$19*Eks_House_of_Quality!$F22*Eks_House_of_Quality!P22 -> 0 | AK9: =Eks_House_of_Quality!S$19*Eks_House_of_Quality!$F22*Eks_House_of_Quality!S22 -> 0 | AL9: =Eks_House_of_Quality!V$19*Eks_House_of_Quality!$F22*Eks_House_of_Quality!V22 -> 0 | AM9: =Eks_House_of_Quality!Y$19*Eks_House_of_Quality!$F22*Eks_House_of_Quality!Y22 -> 0 | AN9: =Eks_House_of_Quality!AB$19*Eks_House_of_Quality!$F22*Eks_House_of_Quality!AB22 -> 0
A10: dato | AG10: =Eks_House_of_Quality!G$19*Eks_House_of_Quality!$F23*Eks_House_of_Quality!G23 -> 0 | AH10: =Eks_House_of_Quality!J$19*Eks_House_of_Quality!$F23*Eks_House_of_Quality!J23 -> 0 | AI10: =Eks_House_of_Quality!M$19*Eks_House_of_Quality!$F23*Eks_House_of_Quality!M23 -> 0 | AJ10: =Eks_House_of_Quality!P$19*Eks_House_of_Quality!$F23*Eks_House_of_Quality!P23 -> 0 | AK10: =Eks_House_of_Quality!S$19*Eks_House_of_Quality!$F23*Eks_House_of_Quality!S23 -> 0 | AL10: =Eks_House_of_Quality!V$19*Eks_House_of_Quality!$F23*Eks_House_of_Quality!V23 -> 0 | AM10: =Eks_House_of_Quality!Y$19*Eks_House_of_Quality!$F23*Eks_House_of_Quality!Y23 -> 3 | AN10: =Eks_House_of_Quality!AB$19*Eks_House_of_Quality!$F23*Eks_House_of_Quality!AB23 -> 0
A11: spids til at trække pex rør i trækrør, anvendes af vvs folk ved udskiftning af rør | AG11: =Eks_House_of_Quality!G$19*Eks_House_of_Quality!$F24*Eks_House_of_Quality!G24 -> 0 | AH11: =Eks_House_of_Quality!J$19*Eks_House_of_Quality!$F24*Eks_House_of_Quality!J24 -> 0 | AI11: =Eks_House_of_Quality!M$19*Eks_House_of_Quality!$F24*Eks_House_of_Quality!M24 -> 0 | AJ11: =Eks_House_of_Quality!P$19*Eks_House_of_Quality!$F24*Eks_House_of_Quality!P24 -> 0 | AK11: =Eks_House_of_Quality!S$19*Eks_House_of_Quality!$F24*Eks_House_of_Quality!S24 -> 0 | AL11: =Eks_House_of_Quality!V$19*Eks_House_of_Quality!$F24*Eks_House_of_Quality!V24 -> 729 | AM11: =Eks_House_of_Quality!Y$19*Eks_House_of_Quality!$F24*Eks_House_of_Quality!Y24 -> 0 | AN11: =Eks_House_of_Quality!AB$19*Eks_House_of_Quality!$F24*Eks_House_of_Quality!AB24 -> 0
AG12: =Eks_House_of_Quality!G$19*Eks_House_of_Quality!$F25*Eks_House_of_Quality!G25 -> 0 | AH12: =Eks_House_of_Quality!J$19*Eks_House_of_Quality!$F25*Eks_House_of_Quality!J25 -> 0 | AI12: =Eks_House_of_Quality!M$19*Eks_House_of_Quality!$F25*Eks_House_of_Quality!M25 -> 0 | AJ12: =Eks_House_of_Quality!P$19*Eks_House_of_Quality!$F25*Eks_House_of_Quality!P25 -> 0 | AK12: =Eks_House_of_Quality!S$19*Eks_House_of_Quality!$F25*Eks_House_of_Quality!S25 -> 0 | AL12: =Eks_House_of_Quality!V$19*Eks_House_of_Quality!$F25*Eks_House_of_Quality!V25 -> 27 | AM12: =Eks_House_of_Quality!Y$19*Eks_House_of_Quality!$F25*Eks_House_of_Quality!Y25 -> 0 | AN12: =Eks_House_of_Quality!AB$19*Eks_House_of_Quality!$F25*Eks_House_of_Quality!AB25 -> 0
AG13: =Eks_House_of_Quality!G$19*Eks_House_of_Quality!$F26*Eks_House_of_Quality!G26 -> 0 | AH13: =Eks_House_of_Quality!J$19*Eks_House_of_Quality!$F26*Eks_House_of_Quality!J26 -> 243 | AI13: =Eks_House_of_Quality!M$19*Eks_House_of_Quality!$F26*Eks_House_of_Quality!M26 -> 729 | AJ13: =Eks_House_of_Quality!P$19*Eks_House_of_Quality!$F26*Eks_House_of_Quality!P26 -> 0 | AK13: =Eks_House_of_Quality!S$19*Eks_House_of_Quality!$F26*Eks_House_of_Quality!S26 -> 0 | AL13: =Eks_House_of_Quality!V$19*Eks_House_of_Quality!$F26*Eks_House_of_Quality!V26 -> 0 | AM13: =Eks_House_of_Quality!Y$19*Eks_House_of_Quality!$F26*Eks_House_of_Quality!Y26 -> 0 | AN13: =Eks_House_of_Quality!AB$19*Eks_House_of_Quality!$F26*Eks_House_of_Quality!AB26 -> 0
AG14: =Eks_House_of_Quality!G$19*Eks_House_of_Quality!$F27*Eks_House_of_Quality!G27 -> 0 | AH14: =Eks_House_of_Quality!J$19*Eks_House_of_Quality!$F27*Eks_House_of_Quality!J27 -> 0 | AI14: =Eks_House_of_Quality!M$19*Eks_House_of_Quality!$F27*Eks_House_of_Quality!M27 -> 81 | AJ14: =Eks_House_of_Quality!P$19*Eks_House_of_Quality!$F27*Eks_House_of_Quality!P27 -> 27 | AK14: =Eks_House_of_Quality!S$19*Eks_House_of_Quality!$F27*Eks_House_of_Quality!S27 -> 9 | AL14: =Eks_House_of_Quality!V$19*Eks_House_of_Quality!$F27*Eks_House_of_Quality!V27 -> 0 | AM14: =Eks_House_of_Quality!Y$19*Eks_House_of_Quality!$F27*Eks_House_of_Quality!Y27 -> 0 | AN14: =Eks_House_of_Quality!AB$19*Eks_House_of_Quality!$F27*Eks_House_of_Quality!AB27 -> 27
AG15: =Eks_House_of_Quality!G$19*Eks_House_of_Quality!$F28*Eks_House_of_Quality!G28 -> 0 | AH15: =Eks_House_of_Quality!J$19*Eks_House_of_Quality!$F28*Eks_House_of_Quality!J28 -> 0 | AI15: =Eks_House_of_Quality!M$19*Eks_House_of_Quality!$F28*Eks_House_of_Quality!M28 -> 0 | AJ15: =Eks_House_of_Quality!P$19*Eks_House_of_Quality!$F28*Eks_House_of_Quality!P28 -> 0 | AK15: =Eks_House_of_Quality!S$19*Eks_House_of_Quality!$F28*Eks_House_of_Quality!S28 -> 0 | AL15: =Eks_House_of_Quality!V$19*Eks_House_of_Quality!$F28*Eks_House_of_Quality!V28 -> 27 | AM15: =Eks_House_of_Quality!Y$19*Eks_House_of_Quality!$F28*Eks_House_of_Quality!Y28 -> 0 | AN15: =Eks_House_of_Quality!AB$19*Eks_House_of_Quality!$F28*Eks_House_of_Quality!AB28 -> 0
A16: Retning af forbedring | G16: 1 | J16: 0 | M16: 0 | P16: 1 | S16: 1 | V16: 1 | Y16: 1 | AB16: 1 | AG16: =SUM(AG7:AG15) -> 0 | AH16: 486 | AI16: 2025 | AJ16: 27 | AK16: 9 | AL16: 1026 | AM16: 3 | AN16: 27
D17: Tekniske krav | F17: Vigtighed for kunden | G17: Funktion | P17: Sortiment | V17: Teknisk | AG17: =SUM(AG16:AN16) -> 3603
G18: gældende standarder | J18: frigang i rør | M18: Træk/skub modstand | P18: Rør dimmentioner | S18: materialer | V18: Fastspænding | Y18: Gnidningskoefficient | AB18: holdbarhed (pris pr træk)
A19: Kundekrav | G19: 3 | J19: 9 | M19: 9 | P19: 3 | S19: 1 | V19: 9 | Y19: 3 | AB19: 3
A20: krav til rør træk spids | B20: Funktion | C20: gøre udskiftning simpel | F20: 9 | G20: 0 | J20: 0 | M20: 9 | P20: 0 | S20: 0 | V20: 0 | Y20: 0 | AB20: 0
C21: må aldrig tabes i yderrør | F21: 3 | G21: 0 | J21: 9 | M21: 9 | P21: 0 | S21: 0 | V21: 9 | Y21: 0 | AB21: 0
C22: ikke skade yderrør | F22: 3 | G22: 0 | J22: 0 | M22: 9 | P22: 0 | S22: 0 | V22: 0 | Y22: 0 | AB22: 0
C23: indeholde glide middel | F23: 1 | G23: 0 | J23: 0 | M23: 0 | P23: 0 | S23: 0 | V23: 0 | Y23: 1 | AB23: 0
B24: Brugbarhed | C24: Nem at monterer | F24: 9 | G24: 0 | J24: 0 | M24: 0 | P24: 0 | S24: 0 | V24: 9 | Y24: 0 | AB24: 0
C25: nem at demonterer | F25: 1 | G25: 0 | J25: 0 | M25: 0 | P25: 0 | S25: 0 | V25: 3 | Y25: 0 | AB25: 0
C26: mulighed for træk+skub | F26: 9 | G26: 0 | J26: 3 | M26: 9 | P26: 0 | S26: 0 | V26: 0 | Y26: 0 | AB26: 0
C27: Rentabel | F27: 3 | G27: 0 | J27: 0 | M27: 3 | P27: 3 | S27: 3 | V27: 0 | Y27: 0 | AB27: 3
C28: ikke behov for værktøj | F28: 1 | G28: 0 | J28: 0 | M28: 0 | P28: 0 | S28: 0 | V28: 3 | Y28: 0 | AB28: 0
C29: Teknisk prioritet | G29: =Eks_House_of_Quality!AG16 -> 0 | J29: =Eks_House_of_Quality!AH16 -> 486 | M29: =Eks_House_of_Quality!AI16 -> 2025 | P29: =Eks_House_of_Quality!AJ16 -> 27 | S29: =Eks_House_of_Quality!AK16 -> 9 | V29: =Eks_House_of_Quality!AL16 -> 1026 | Y29: =Eks_House_of_Quality!AM16 -> 3 | AB29: =Eks_House_of_Quality!AN16 -> 27
C30: Procent af den samlede | G30: =100/Eks_House_of_Quality!$AG$17*Eks_House_of_Quality!G29:I29 -> 0 | J30: =100/Eks_House_of_Quality!$AG$17*Eks_House_of_Quality!J29:L29 -> 13.48875937 | M30: =100/Eks_House_of_Quality!$AG$17*Eks_House_of_Quality!M29:O29 -> 56.20316403 | P30: =100/Eks_House_of_Quality!$AG$17*Eks_House_of_Quality!P29:R29 -> 0.7493755204 | S30: =100/Eks_House_of_Quality!$AG$17*Eks_House_of_Quality!S29:U29 -> 0.2497918401 | V30: =100/Eks_House_of_Quality!$AG$17*Eks_House_of_Quality!V29:X29 -> 28.47626978 | Y30: =100/Eks_House_of_Quality!$AG$17*Eks_House_of_Quality!Y29:AA29 -> 0.08326394671 | AB30: =100/Eks_House_of_Quality!$AG$17*Eks_House_of_Quality!AB29:AD29 -> 0.7493755204
C31: Enhed | G31: Yes/No | J31: mm | M31: N | P31: stk | S31: stk | V31: N | Y31: N | AB31: kr/stk
C32: Design Mål | G32: Y | J32: 3 | M32: 100 | P32: 4 | S32: 2 | V32: 500 | Y32: 0.2 | AB32: 2
C33: Teknisk benchmarking | D33: Vores produkt | G33: Y | J33: 2.8 | M33: 90 | P33: 2 | S33: 1 | V33: 460 | Y33: 0.21 | AB33: 1.24
D34: Konkurrent A´s produkt | G34: Y | J34: 3.5 | M34: 110 | P34: 2 | S34: 2 | V34: 600 | Y34: 0.23 | AB34: 5
D35: Konkurrent B´s produkt | G35: Y | J35: 2 | M35: 130 | P35: 4 | S35: 2 | V35: 520 | Y35: 0.19 | AB35: 10
C36: 9 | D36: Stærk overensstemmelse
C37: 3 | D37: Middel overensstemmelse
C38: 1 | D38: Svag overensstemmelse
C39: 0 | D39: Ingen overensstemmelse

Sheet Endeligt_produkt (hidden)
C2: Udført: | D2: =IF(G7>0,IF(G7=1,2,1),0) -> 0
B3: Tegninger til endeligt design
B6: Beskrivelse af endeligt design
G7: =ISTEXT(B7)*1 -> 0

Sheet Emballage (hidden)
B2: Udført: | C2: =IF(I25>0,IF(I25>9,2,1),0) -> 0
B3: Krav til Emballage-design
B4: Helhedsindtryk: Beskriv, hvad man skal tænke, når man ser emballagen
I5: =ISTEXT(B5)*1 -> 0
B6: Dekoration: Beskriv formgivning, materialetykkelser, dimensioner, farvevalg, illustrationer m.m.
I7: =ISTEXT(B7)*1 -> 0
B8: Tekst: Beskriv tekst på emballage, vejledninger, advarsler og anden væsentlig information
I9: 0
B10: Leverandørvenlighed: beskriv tilpasning til palle, antal stk. i højden; positionslåse (ølkasser) m.m.
I11: 0
B12: Ydre styrke: Stabelbar, tryk, slag, vand, varme/kulde, spidse/skarpe genstande m.m.
I13: 0
B14: Indre emballage: transportsikring, rystelser, fastholdelse, opdeling af indhold, energinedsættelse ved fald m.m.
I15: 0
B16: Vejledninger: Brugervejledning, installationsvejledning, montagevejledning m.m.
I17: 0
B18: Materialer: pris, holdbarhed, æstetik, formbarhed, produktionsvenlighed
I19: 0
B20: Produktion: udskæring, støbning, formning, samling, sammenføjning (limning, clips, svejsning)
I21: 0
B22: Tegning af dit design
I23: 0
I25: =SUM(I5:I24) -> 0

Sheet Produktion (hidden)
F2: Udført: | G2: =IF(O30>0,IF(O30>16,2,1),0) -> 0
B3: Beslut produktionsform
C4: Argumentation for valg
B5: Lagerstyret
B6: Ordrestyret
B7: Tegn et flow over produktionsprocesserne | H7: =Flow!C2 -> 0
B8: Tegn et produktionslayout | H8: =Produktionslayout!C2 -> 0
B9: Tegn et tidsskema | H9: =Gantt!C2 -> 0
B10: Opstil en leverandørliste
B11: Leverandør | C11: Vare/varetype | E11: Telefonnr. | F11: E-mail | G11: Kontakt navn
M12: =NOT(ISBLANK(B12))*NOT(ISBLANK(C12))*NOT(ISBLANK(E12))*NOT(ISBLANK(F12))*NOT(ISBLANK(G12)) -> 0
M13: =NOT(ISBLANK(B13))*NOT(ISBLANK(C13))*NOT(ISBLANK(E13))*NOT(ISBLANK(F13))*NOT(ISBLANK(G13)) -> 0
M14: 0
M15: 0
M16: 0 | N16: =SUM(M12:M16) -> 0 | O16: =IF(N16>2,1,0) -> 0
B17: Kontakt leverandører for pris og salgsbetingelser | H17: =Priser!F2 -> 0
B18: Opsæt et prisoverslag over de direkte omkostninger pr. produkt
C19: Pris | D19: Kommentar
B20: Materialer | O20: =ISNUMBER(C20)*ISTEXT(D20) -> 0
B21: Arbejdsløn | O21: =ISNUMBER(C21)*ISTEXT(D21) -> 0
B22: Energi | O22: 0
B23: Slid på maskiner | O23: 0
B24: Transport
B25: Vurder, hvordan produktionen kan optimeres
B26: Materialer | O26: =ISTEXT(C26)*1 -> 0
B27: Arbejdsløn | O27: =ISTEXT(C27)*1 -> 0
B28: Energi | O28: 0
B29: Slid på maskiner | O29: 0
B30: Transport | O30: =SUM(O16:O29,H7:H17) -> 0

Sheet Flow (hidden)
B2: Udført: | C2: =IF(I2>0,IF(I2>0,2,1),0) -> 0 | I2: 0
B3: Tegn et detaljeret flow over alle produktionsprocesser (kopier de indsatte figurer) Du kan også vælge at benytte et tegneprogram - fx https://www.lucidchart.com | I3: Sættes til 1 når der åbnes første gang
B4: Indsæt vurderede/målte tider på alle processer

Sheet Produktionslayout (hidden)
B2: Udført: | C2: =IF(I2>0,IF(I2>0,2,1),0) -> 0 | I2: 0
B3: Tegn et detaljeret layout over produktion og nær-/fjernlager Husk, at dit layout skal forholde sig til det fysiske rum, det skal opsættes i. (relevante mål skal være påført) | I3: Sættes til 1 når der åbnes første gang
B4: Indsæt vurderede tider for processer fra ”flow over produktionsprocesserne” og transporttider

Sheet Gantt (hidden)
B2: Udført: | C2: =IF(I2>0,IF(I2>0,2,1),0) -> 0 | I2: 0
B3: Udfyld nedenstående gantt-kort: | I3: Sættes til 1 når der åbnes første gang
B5: Post | C5: Beskrivelse | G5: Ansvarlig | H5: Tids-type | I5: 1 | J5: 2 | K5: 3 | L5: 4 | M5: 1 | N5: 2 | O5: 3 | P5: 4 | Q5: 5 | R5: 6 | S5: 7 | T5: 8 | U5: 9 | V5: 10 | W5: 11 | X5: 12 | Y5: 13 | Z5: 14 | AA5: 15 | AB5: 16 | AC5: 17 | AD5: 18 | AE5: 19 | AF5: 20 | AG5: 21 | AH5: 22 | AI5: 23 | AJ5: 24 | AK5: 25 | AL5: 26 | AM5: 27 | AN5: 28 | AO5: 29 | AP5: 30 | AQ5: 31 | AR5: 32 | AS5: 33 | AT5: 34 | AU5: 35 | AV5: 36
B6: 0
B7: 1
B8: 2
B9: 3
B10: 4
B11: 5
B12: 6
B13: 7
B14: 8
B15: 9
B16: 10
B17: 11
B18: 12
B19: 13
B21: Ansvarlig | E21: Tids-type | G21: Tidsmål | M21: farve | P21: Tidsmål
B22: Navn | D22: Initialer | M22: kode
E23: Transport | F23: T
E24: Process | F24: P
E25: Lager | F25: L
E26: Ventetid | F26: V

Sheet Priser (hidden)
E2: Udført: | F2: =IF(L45>0,IF(L45>5,2,1),0) -> 0
B3: Undersøgelse af priser
B4: Varenummer | C4: Beskrivelse | D4: Materiale | E4: Pris | F4: Lev. tid
L5: =NOT(ISBLANK(B5))*NOT(ISBLANK(C5))*NOT(ISBLANK(D5))*NOT(ISBLANK(E5))*NOT(ISBLANK(F5)) -> 0
B6: Leveringsbetingelser
L7: =ISTEXT(B7)*1 -> 0
B8: Varenummer | C8: Beskrivelse | D8: Materiale | E8: Pris | F8: Lev. tid
L9: =NOT(ISBLANK(B9))*NOT(ISBLANK(C9))*NOT(ISBLANK(D9))*NOT(ISBLANK(E9))*NOT(ISBLANK(F9)) -> 0
B10: Leveringsbetingelser
L11: =ISTEXT(B11)*1 -> 0
B12: Varenummer | C12: Beskrivelse | D12: Materiale | E12: Pris | F12: Lev. tid
L13: =NOT(ISBLANK(B13))*NOT(ISBLANK(C13))*NOT(ISBLANK(D13))*NOT(ISBLANK(E13))*NOT(ISBLANK(F13)) -> 0
B14: Leveringsbetingelser
L15: =ISTEXT(B15)*1 -> 0
B16: Varenummer | C16: Beskrivelse | D16: Materiale | E16: Pris | F16: Lev. tid
L17: =NOT(ISBLANK(B17))*NOT(ISBLANK(C17))*NOT(ISBLANK(D17))*NOT(ISBLANK(E17))*NOT(ISBLANK(F17)) -> 0
B18: Leveringsbetingelser
L19: =ISTEXT(B19)*1 -> 0
B20: Varenummer | C20: Beskrivelse | D20: Materiale | E20: Pris | F20: Lev. tid
L21: =NOT(ISBLANK(B21))*NOT(ISBLANK(C21))*NOT(ISBLANK(D21))*NOT(ISBLANK(E21))*NOT(ISBLANK(F21)) -> 0
B22: Leveringsbetingelser
L23: =ISTEXT(B23)*1 -> 0
B24: Varenummer | C24: Beskrivelse | D24: Materiale | E24: Pris | F24: Lev. tid
L25: =NOT(ISBLANK(B25))*NOT(ISBLANK(C25))*NOT(ISBLANK(D25))*NOT(ISBLANK(E25))*NOT(ISBLANK(F25)) -> 0
B26: Leveringsbetingelser
L27: =ISTEXT(B27)*1 -> 0
B28: Varenummer | C28: Beskrivelse | D28: Materiale | E28: Pris | F28: Lev. tid
L29: =NOT(ISBLANK(B29))*NOT(ISBLANK(C29))*NOT(ISBLANK(D29))*NOT(ISBLANK(E29))*NOT(ISBLANK(F29)) -> 0
B30: Leveringsbetingelser
L31: =ISTEXT(B31)*1 -> 0
B32: Varenummer | C32: Beskrivelse | D32: Materiale | E32: Pris | F32: Lev. tid
L33: =NOT(ISBLANK(B33))*NOT(ISBLANK(C33))*NOT(ISBLANK(D33))*NOT(ISBLANK(E33))*NOT(ISBLANK(F33)) -> 0
B34: Leveringsbetingelser
L35: =ISTEXT(B35)*1 -> 0
B36: Varenummer | C36: Beskrivelse | D36: Materiale | E36: Pris | F36: Lev. tid
L37: =NOT(ISBLANK(B37))*NOT(ISBLANK(C37))*NOT(ISBLANK(D37))*NOT(ISBLANK(E37))*NOT(ISBLANK(F37)) -> 0
B38: Leveringsbetingelser
L39: =ISTEXT(B39)*1 -> 0
B40: Varenummer | C40: Beskrivelse | D40: Materiale | E40: Pris | F40: Lev. tid
L41: =NOT(ISBLANK(B41))*NOT(ISBLANK(C41))*NOT(ISBLANK(D41))*NOT(ISBLANK(E41))*NOT(ISBLANK(F41)) -> 0
B42: Leveringsbetingelser
L43: =ISTEXT(B43)*1 -> 0
L45: =SUM(L5:L44) -> 0

Sheet Markedsføring (hidden)
D2: Udført: | E2: =IF(K26>0,IF(K26>10,2,1),0) -> 0
B3: Redegørelse for produktstrategi (Product)
B4: Navn på produktet | K4: =ISTEXT(C4)*1 -> 0
B5: Egenskaber, der skal fremhæves ved produktet | K5: =ISTEXT(C5)*1 -> 0
B6: Services, der er knyttet til produktet | K6: 0
B7: Historie, der skal fortælles om produktet | K7: 0
B8: Logodesignet til produktet eller til virksomheden | K8: 0
B9: Grafisk design af emballagen | F9: =Grafisk_design!D2 -> 0
B10: Redegør for prisstrategien (Price)
B11: Specielt produkt - høj pris | L11: =ISNUMBER(E11)*1 -> 0
B12: Mange konkurrenter - lav pris | L12: =ISNUMBER(E12)*1 -> 0
B13: Høj, men faldende startpris | L13: 0
B14: Lav startpris med håb om stigning | K14: =IF(SUM(L11:L14)>0,1,0) -> 0 | L14: 0
B15: Omkostninger forbundet med 1 produkt | K15: =ISNUMBER(E15)*1 -> 0
B16: Pris pr. produkt
B17: Fortjeneste pr. produkt
B18: Redegør for distributionsstrategien (Placement)
B19: Vil I selv stå for distributionen - beskriv hvordan | K19: =ISTEXT(D19)*1 -> 0
B20: Vil I have andre til at stå for distributionen - beskriv hvordan
B21: Redegør for kommunikationsstrategien (Promotion)
B22: Vil I anvende annoncer i blade, radio- og TVspots, banner reklamer m.m.? | K22: =ISTEXT(D22)*1 -> 0
B23: Vil I opsøge kunden med breve, opringninger, mails m.m. Hvordan?
B24: Vil I anvende konkurrencer, vareprøver, pakketilbud m.m. Hvordan?
B25: Kan I skaffe medieomtale af jeres produkter?
K26: =SUM(K4:K25)+F9 -> 0

Sheet Grafisk_design (hidden)
C2: Udført: | D2: =IF(K24>0,IF(K24>14,2,1),0) -> 0
B3: Beskriv tekst på emballagen
B4: (Vejledning, Story telling, Tekniske data, Identifikation, m.m.)
B5: Vejledninger | K5: =ISTEXT(C5)*1 -> 0
B6: Tekniske data | K6: =ISTEXT(C6)*1 -> 0
B7: Produktidentifikation | K7: 0
B8: Anmeldelser/priser | K8: 0
B9: Godkendelser | K9: 0
B10: Story telling | K10: 0
B11: Stregkoder | K11: 0
B12: Sprog | K12: 0
B13: Argumenter for layout
B14: Hvilken overfladeglans | K14: 0
B15: Hvilken baggrundsfarve | K15: 0
B16: Hvilken fonttype | K16: 0
B17: Hvilke tekststørrelser | K17: 0
B18: Hvilke blikfang | K18: 0
B19: Hvilke farver | K19: 0
B20: Hvilke illustrationer | K20: 0
B21: Billeder af designforslag
K24: =SUM(K5:K23) -> 0

Sheet Økonomi (hidden)
C2: Udført: | D2: =IF(I22>0,IF(I22>13,2,1),0) -> 0
B3: Redegør for produktets forventede diffusion
B4: Hvilke fordele giver produktet kunden i forhold til konkurrentens produkter | I4: =ISTEXT(C4)*1 -> 0
B5: Hvad ved produktet kræver specielle færdigheder/normer/holdninger af kunden | I5: =ISTEXT(C5)*1 -> 0
B6: Hvor svært er det at anvende/lære, hvordan man anvender produktet | I6: 0
B7: Hvor er produktet tilgængeligt for kunden, kan man tage det i hånden, prøve det, se det | I7: 0
B8: Hvordan skabes synlighed for produktet, i medierne | I8: 0
B9: Tegn en PLC kurve over den forventede diffusion
B10: Påfør styktal og tider for forskellige former for adoptanter
I11: =ISTEXT(B11)*1 -> 0
B12: Opstil budgetter
C13: Omsætningsbudget | D13: =Omsætningsbudget!H2 -> 0
C14: Etableringsbudget | D14: =Etableringsbudget!F3 -> 0
C15: Faste udgifter | D15: =Faste_udgifter!F2 -> 0
B16: Vurder ud fra budgetterne virksomhedens økonomi
B17: ="De aktuelle tal er: Resultat 3. år " &Omsætningsbudget!N27 & " , Samlede investeringsomkostninger " & Etableringsbudget!C46 & ", of faste omk. pr.måned er " & Faste_udgifter!D35 -> De aktuelle tal er: Resultat 3. år 1000 , Samlede investeringsomkostninger 0, of faste omk. pr.måned er 0
I18: =ISTEXT(B18)*1 -> 0
B19: Beskriv, hvor der kunne sættes ind for at få en bedre økonomi
I20: =ISTEXT(B20)*1 -> 0
I21: =SUM(I4:I20,D13:D15) -> 0

Sheet Omsætningsbudget (hidden)
G2: Udført: | H2: =IF(H8<>5,IF(G9<>53,2,1),0) -> 0
B5: Omkostninger pr produkt
B6: Materiale omkostninger pr. produkt | G6: 5 | H6: Variable
B7: Variable omkostninger (- løn) pr. produkt | G7: 0 | H7: omkostninger i alt
B8: Løn omkostninger pr. produkt | G8: 0 | H8: =G6+G7+G8 -> 5
B9: Salgspris pr. produkt | G9: 53
B10: Beskriv hvor mange stk der sælges | N10: I alt
B11: jan | C11: feb | D11: mar | E11: apr | F11: maj | G11: jun | H11: jul | I11: aug | J11: sep | K11: okt | L11: nov | M11: dec
A12: Første år | B12: 0 | C12: 0 | D12: 0 | E12: 0 | F12: 0 | G12: 0 | H12: 0 | I12: 0 | J12: 0 | K12: 0 | L12: 0 | M12: 0 | N12: =SUM(B12:M12) -> 0
A13: Andet år | B13: 0 | C13: 0 | D13: 0 | E13: 0 | F13: 0 | G13: 0 | H13: 0 | I13: 0 | J13: 0 | K13: 0 | L13: 0 | M13: 0 | N13: =SUM(B13:M13) -> 0
A14: Tredje år | B14: 0 | C14: 0 | D14: 0 | E14: 0 | F14: 0 | G14: 0 | H14: 200 | I14: 0 | J14: 0 | K14: 0 | L14: 0 | M14: 0 | N14: =SUM(B14:M14) -> 200
A15: Variable omkostninger | N15: I alt
A16: Første år | B16: =B12*$H$5 -> 0 | C16: =C12*$H$5 -> 0 | D16: 0 | E16: 0 | F16: 0 | G16: 0 | H16: 0 | I16: 0 | J16: 0 | K16: 0 | L16: 0 | M16: 0 | N16: =SUM(B16:M16) -> 0
A17: Andet år | B17: =B13*$H$5 -> 0 | C17: 0 | D17: 0 | E17: 0 | F17: 0 | G17: 0 | H17: 0 | I17: 0 | J17: 0 | K17: 0 | L17: 0 | M17: 0 | N17: =SUM(B17:M17) -> 0
A18: Tredje år | B18: 0 | C18: 0 | D18: 0 | E18: 0 | F18: 0 | G18: 0 | H18: 0 | I18: 0 | J18: 0 | K18: 0 | L18: 0 | M18: 0 | N18: =SUM(B18:M18) -> 0
A19: indtægter | N19: I alt
A20: Første år | B20: =B12*$G$6 -> 0 | C20: =C12*$G$6 -> 0 | D20: 0 | E20: 0 | F20: 0 | G20: 0 | H20: 0 | I20: 0 | J20: 0 | K20: 0 | L20: 0 | M20: 0 | N20: =SUM(B20:M20) -> 0
A21: Andet år | B21: =B13*$G$6 -> 0 | C21: 0 | D21: 0 | E21: 0 | F21: 0 | G21: 0 | H21: 0 | I21: 0 | J21: 0 | K21: 0 | L21: 0 | M21: 0 | N21: =SUM(B21:M21) -> 0
A22: Tredje år | B22: 0 | C22: 0 | D22: 0 | E22: 0 | F22: 0 | G22: 0 | H22: 1000 | I22: 0 | J22: 0 | K22: 0 | L22: 0 | M22: 0 | N22: =SUM(B22:M22) -> 1000
B23: Faste udgifter pr. md | G23: =Faste_udgifter!D35 -> 0
A24: Resultat | N24: I alt
A25: Første år | B25: =B20-B16-$G$20 -> 0 | C25: =C20-C16-$G$20 -> 0 | D25: 0 | E25: 0 | F25: 0 | G25: 0 | H25: 0 | I25: 0 | J25: 0 | K25: 0 | L25: 0 | M25: 0 | N25: =SUM(B25:M25) -> 0
A26: Andet år | B26: =B21-B17-$G$20 -> 0 | C26: 0 | D26: 0 | E26: 0 | F26: 0 | G26: 0 | H26: 0 | I26: 0 | J26: 0 | K26: 0 | L26: 0 | M26: 0 | N26: =SUM(B26:M26) -> 0
A27: Tredje år | B27: 0 | C27: 0 | D27: 0 | E27: 0 | F27: 0 | G27: 0 | H27: 1000 | I27: 0 | J27: 0 | K27: 0 | L27: 0 | M27: 0 | N27: =SUM(B27:M27) -> 1000

Sheet Etableringsbudget (hidden)
E3: Udført: | F3: =IF(C46>0,IF(C46>1,2,1),0) -> 0
B5: Etablerings budget
B6: produktionsmaskiner | E6: Bygninger/lokaler
C7: 0 | F7: 0
C8: 0 | F8: 0
C9: 0 | F9: 0
C10: 0 | F10: 0
C11: 0 | F11: 0
C12: 0 | F12: 0
C13: 0 | F13: 0
B14: produktionsmaskiner i alt | C14: =SUM(C7:C13) -> 0 | E14: Bygninger i alt | F14: =SUM(F7:F13) -> 0
B16: Kontorudstyr og software | E16: Møbler
C17: 0 | F17: 0
C18: 0 | F18: 0
C19: 0 | F19: 0
C20: 0 | F20: 0
C21: 0 | F21: 0
C22: 0 | F22: 0
C23: 0 | F23: 0
B24: Kontorudstyr i alt | C24: =SUM(C17:C23) -> 0 | E24: Møbler i alt | F24: =SUM(F17:F23) -> 0
B26: Transport Cykel/bil/truck ect | E26: varerindkøb før start
C27: 0 | F27: 0
C28: 0 | F28: 0
C29: 0 | F29: 0
C30: 0 | F30: 0
C31: 0 | F31: 0
C32: 0 | F32: 0
C33: 0 | F33: 0
B34: Transport i alt | C34: =SUM(C27:C33) -> 0 | E34: Transport i alt | F34: =SUM(F27:F33) -> 0
B36: Patenter, designbesk. og andet | E36: Rådgivning, advokat, revisor m.m.
C37: 0 | F37: 0
C38: 0 | F38: 0
C39: 0 | F39: 0
C40: 0 | F40: 0
C41: 0 | F41: 0
C42: 0 | F42: 0
C43: 0 | F43: 0
B44: Imaterielle rettigheder | C44: =SUM(C37:C43) -> 0 | E44: Imaterielle rettigheder | F44: =SUM(F37:F43) -> 0
B46: Anskaffelser i alt | C46: =C14+C24+F14+F24+C34+C44+F34+F44 -> 0

Sheet Faste_udgifter (hidden)
E2: Udført: | F2: =IF(D35>0,IF(D35>10,2,1),0) -> 0
B4: Faste omkostninger pr. måned
B5: Husleje | E5: El vand varme internet
C6: 0 | F6: 0
C7: 0 | F7: 0
C8: 0 | F8: 0
C9: 0 | F9: 0
C10: 0 | F10: 0
C11: 0 | F11: 0
C12: 0 | F12: 0
B13: Husleje i alt | C13: =SUM(C6:C12) -> 0 | E13: El vand varme internet i alt | F13: =SUM(F6:F12) -> 0
B15: leje ( software, biler m.m. ) | E15: Medarbejdere (Løn)
C16: 0 | F16: 0
C17: 0 | F17: 0
C18: 0 | F18: 0
C19: 0 | F19: 0
C20: 0 | F20: 0
C21: 0 | F21: 0
C22: 0 | F22: 0
B23: leje ( software, biler m.m. ) | C23: =SUM(C16:C22) -> 0 | E23: Møbler i alt | F23: =SUM(F16:F22) -> 0
B25: Renter for lån mv.
C26: 0 | F26: 0
C27: 0 | F27: 0
C28: 0 | F28: 0
C29: 0 | F29: 0
C30: 0 | F30: 0
C31: 0 | F31: 0
C32: 0 | F32: 0
B33: Renter for lån i alt | C33: =SUM(C26:C32) -> 0 | F33: =SUM(F26:F32) -> 0
B35: Faste omkostninger pr måned | D35: =C13+C23+F13+F23+C33+F33 -> 0

Sheet Virksomhedsetablering (hidden)
B2: Udført: | C2: =IF(F28>0,IF(F28>12,2,1),0) -> 0
B3: Virksomhedens etablering
B4: Argumenter for valg af virksomhedsform (Enkeltejer/Interessentskab [personlig hæfte], Anpartsselskab [indskud 80.000], Aktieselskab [indskud 500 .000])
B5: (Enkeltejer/Interessentskab [personlig hæfte], Anpartsselskab [indskud 80.000], Aktieselskab [indskud 500 .000])
F6: =ISTEXT(B6)*1 -> 0
B7: Argumenter for valg af organisationsform
F10: =ISTEXT(B10)*1 -> 0
B11: Tegn organisationen
B13: Udfør en personlighedstest for de nuværende ansatte | C13: =PAEI!R2 -> 0
B14: Udform en kontrakt for de enkelte medarbejdere i virksomheden | C14: =Gruppekontrakt!D2 -> 0
B15: Formuler virksomhedens vision (en ledestjerne der ikke nødvendigvis skal kunne nås)
F16: =ISTEXT(B16)*1 -> 0
B17: Formuler virksomhedens mission (det der sættes i værk for, at komme nærmere visionen)
F18: =ISTEXT(B18)*1 -> 0
B19: Formuler virksomhedens mål (Det der skal kunne nås inden for en overskuelig fremtid [f.eks. 1 år])
F20: =ISTEXT(B20)*1 -> 0
B21: Udfyld virksomhedens forretningsmodel | C21: =Forretningsmodel!G2 -> 0
B22: Udfyld en SWOT for virksomheden: | C22: =SWOT_analyse!G2 -> 0
B23: eventuelt med udgangspunkt i konkurrende virksomheder
B24: Opstil en forretningsplan for virksomheden
B25: forretningsplan
B26: Indsæt her linket til den udfyldte forretningsplan
F28: =SUM(F6:F27) -> 0

Sheet PAEI (hidden)
Q2: Udført: | R2: =IF(G87>0,IF(G88>0,2,1),0) -> 0
B3: Undersøg en medarbejder
B4: Skriv 1 eller x ved de ting nedenfor, du mener karakteriserer dig selv, og lad de øvrige stå tomme - husk, at du først må bladre ned på siden og se testresultatet, når du har udfyldt HELE skemaet
B6: point | E6: point | H6: point | K6: point | N6: point | Q6: point
C7: 1. Positiv | F7: 21. Fremtidsbevidst | I7: 41. Centraliserer | L7: 61. Kvalitetsbevidst | O7: 81. Administrator | R7: 101. Målbevidst
C8: 2. Visionær | F8: 22. Responsiv | I8: 42. Går i spidsen | L8: 62. Kontrolleret | O8: 82. Giver efter | R8: 102. Tålmodig
C9: 3. Vellidt | F9: 23. Moderat | I9: 43. Let sind | L9: 63. Fysisk aktiv | O9: 83. Billedlig | R9: 103. Praktisk
C10: 4. Traditionstro | F10: 24. Tidlig voksen | I10: 44. Rastløs | L10: 64. Tager chancer | O10: 84. Dogmatisk | R10: 104. Viljestærk
C11: 5. Intellektuel | F11: 25. Tilfreds | I11: 45. Analytisk | L11: 65. Harmonisk | O11: 85. Formel | R11: 105. Energisk
B12: point | E12: point | H12: point | K12: point | N12: point | Q12: point
C13: 6. Eventyrlysten | F13: 26. Aggressiv | I13: 46. Inspirerende | L13: 66. Beslutsom | O13: 86. Bagstræberisk | R13: 106. Nøjagtig
C14: 7. Villig | F14: 27. Optimistisk | I14: 47. Attraktiv | L14: 67. Prøvende | O14: 87. Utroværdig | R14: 107. Respektfuld
C15: 8. Detaljerig | F15: 28. Resultattrang | I15: 48. Uovervindelig | L15: 68. Rodet | O15: 88. Udglattende | R15: 108. Populær
C16: 9 . Kammeratlig | F16: 29. Musikalsk | I16: 49. Organisator | L16: 69. Utålmodig | O16: 89. Drivende | R16: 109. Åbent sind
C17: 10. Karakterstærk | F17: 30. Veltalende | I17: 50. Menneskelig | L17: 70. Idérig | O17: 90. Nonchalant | R17: 110. Modig
B18: point | E18: point | H18: point | K18: point | N18: point | Q18: point
C19: 11. Påvirkelig | F19: 31. Argumentativ | I19: 51. Glemsom | L19: 71. Majestætisk | O19: 91. Legesyg | R19: 111. Kritisk
C20: 12. Gestikulerende | F20: 32. Upræcis | I20: 52. Ubøjelig | L20: 72. Forsigtig | O20: 92. Rolig | R20: 112. Fordomsfuld
C21: 13. Elsker smiger | F21: 33. Konventionel | I21: 53. Lystrer ordrer | L21: 73. Melankolsk | O21: 93. Entusiastisk | R21: 113. Ophidset
C22: 14. Stræber | F22: 34. Beundret | I22: 54. Selvcentreret | L22: 74. Fanatisk | O22: 94. Tillidsfuld | R22: 114. Uenergisk
C23: 15. Upålidelig | F23: 35. Ineffektiv | I23: 55. Ryggesløs | L23: 75. Autoritær | O23: 95. Pionerånd | R23: 115. Forandringssky
B24: point | E24: point | H24: point | K24: point | N24: point | Q24: point
C25: 16. Velovervejet | F25: 36. Sensitiv | I25: 56. Diplomatisk | L25: 76. Fredelig | O25: 96. Samarbejdsvillig | R25: 116. Skabende
C26: 17. Straffer gerne | F26: 37. Uafhængig | I26: 57. Kontrollerende | L26: 77. Uformel | O26: 97. Ansvarsbevidst | R26: 117. Overbevisende
C27: 18. Munter | F27: 38. Regelbunden | I27: 58. Charmerende | L27: 78. Tilpasser sig | O27: 98. Kraftfuld | R27: 118. Aktiv
C28: 19. Original | F28: 39. Spørgende | I28: 59. Idealistisk | L28: 79. Loyal | O28: 99. Taler frit | R28: 119. Hårdt arbejdende
C29: 20. Afbalanceret | F29: 40. Jovial | I29: 60. Presser på | L29: 80. Skaber enighed | O29: 100. Lyttende | R29: 120. Involveret
B32: Dette regneark er udarbejdet med tilladelse fra Undervisningsministeriet.
B33: Det originale materiale kan findes på linket: | F33: http://pub.uvm.dk/2006/eudlaering/pdf/samarbejde_eks_4.pdf
B34: Se Introduktion til roller i forbindelse med gruppesamarbejde
C35: http://pub.uvm.dk/2006/eudlaering/samarbejde.html
B40: Analyseresultat
C43: =IF(G87>0,G87,"") ->  | F43: =IF(G88>0,G88,"") ->  | J43: =IF(G89>0,G89,"") ->  | N43: =IF(G90>0,G90,"") -> 
C44: Producent | F44: Administrator | J44: Entreprenør | N44: Integrator
C45: =IF(G87>=21,C93,IF(G87>=16,C94,IF(G87>=11,C95,IF(G87>=5,C96,"Ingen Producent del")))) -> Ingen Producent del | F45: =IF(G88>=21,G93,IF(G88>=16,G94,IF(G88>=11,G95,IF(G88>=5,G96,"Ingen Integrator del")))) -> Ingen Integrator del | J45: =IF(G89>=21,K93,IF(G89>=16,K94,IF(G89>=11,K95,IF(G89>=5,K94,"ingen Entreprenør del")))) -> ingen Entreprenør del | N45: =IF(G90>=21,O93,IF(G90>=16,O94,IF(G90>=11,O95,IF(G90>=5,O94,"Ingen Administrator del")))) -> Ingen Administrator del
B69: x | C69: AAAAAAAAAAA | D69: x | E69: BBBBBB | F69: x | G69: CCCCCCC | H69: x | I69: DDDDDD | J69: x | K69: EEEEEE | L69: x | M69: FFFFF | N69: x | O69: GGGGGG | P69: x | Q69: HHHHHHH | R69: x | S69: IIIIIII
B70: =B11 -> 0 | C70: =C11 -> 5. Intellektuel | D70: =E13 -> 0 | E70: =F13 -> 26. Aggressiv | F70: =B8 -> 0 | G70: =C8 -> 2. Visionær | H70: =B10 -> 0 | I70: =C10 -> 4. Traditionstro | J70: =B7 -> 0 | K70: =C7 -> 1. Positiv | L70: =B23 -> 0 | M70: =C23 -> 15. Upålidelig | N70: =B15 -> 0 | O70: =C15 -> 8. Detaljerig | P70: =B14 -> 0 | Q70: =C14 -> 7. Villig | R70: =B9 -> 0 | S70: =C9 -> 3. Vellidt
B71: =B17 -> 0 | C71: =C17 -> 10. Karakterstærk | D71: =E19 -> 0 | E71: =F19 -> 31. Argumentativ | F71: =B13 -> 0 | G71: =C13 -> 6. Eventyrlysten | H71: =E15 -> 0 | I71: =F15 -> 28. Resultattrang | J71: =B29 -> 0 | K71: =C29 -> 20. Afbalanceret | L71: =E16 -> 0 | M71: =F16 -> 29. Musikalsk | N71: =B22 -> 0 | O71: =C22 -> 14. Stræber | P71: =B16 -> 0 | Q71: =C16 -> 9 . Kammeratlig | R71: =B19 -> 0 | S71: =C19 -> 11. Påvirkelig
B72: =B21 -> 0 | C72: =C21 -> 13. Elsker smiger | D72: =E26 -> 0 | E72: =F26 -> 37. Uafhængig | F72: =B20 -> 0 | G72: =C20 -> 12. Gestikulerende | H72: =E21 -> 0 | I72: =F21 -> 33. Konventionel | J72: =E11 -> 0 | K72: =F11 -> 25. Tilfreds | L72: =E20 -> 0 | M72: =F20 -> 32. Upræcis | N72: =B26 -> 0 | O72: =C26 -> 17. Straffer gerne | P72: =E8 -> 0 | Q72: =F8 -> 22. Responsiv | R72: =B27 -> 0 | S72: =C27 -> 18. Munter
B73: =B25 -> 0 | C73: =C25 -> 16. Velovervejet | D73: =H15 -> 0 | E73: =I15 -> 48. Uovervindelig | F73: =B28 -> 0 | G73: =C28 -> 19. Original | H73: =H11 -> 0 | I73: =I11 -> 45. Analytisk | J73: =E17 -> 0 | K73: =F17 -> 30. Veltalende | L73: =E25 -> 0 | M73: =F25 -> 36. Sensitiv | N73: =E9 -> 0 | O73: =F9 -> 23. Moderat | P73: =E14 -> 0 | Q73: =F14 -> 27. Optimistisk | R73: =E22 -> 0 | S73: =F22 -> 34. Beundret
B74: =E10 -> 0 | C74: =F10 -> 24. Tidlig voksen | D74: =H29 -> 0 | E74: =I29 -> 60. Presser på | F74: =E7 -> 0 | G74: =F7 -> 21. Fremtidsbevidst | H74: =K23 -> 0 | I74: =L23 -> 75. Autoritær | J74: =E29 -> 0 | K74: =F29 -> 40. Jovial | L74: =H19 -> 0 | M74: =I19 -> 51. Glemsom | N74: =E27 -> 0 | O74: =F27 -> 38. Regelbunden | P74: =E28 -> 0 | Q74: =F28 -> 39. Spørgende | R74: =E23 -> 0 | S74: =F23 -> 35. Ineffektiv
B75: =H7 -> 0 | C75: =I7 -> 41. Centraliserer | D75: =K16 -> 0 | E75: =L16 -> 69. Utålmodig | F75: =H10 -> 0 | G75: =I10 -> 44. Rastløs | H75: =K28 -> 0 | I75: =L28 -> 79. Loyal | J75: =K11 -> 0 | K75: =L11 -> 65. Harmonisk | L75: =K15 -> 0 | M75: =L15 -> 68. Rodet | N75: =H8 -> 0 | O75: =I8 -> 42. Går i spidsen | P75: =H13 -> 0 | Q75: =I13 -> 46. Inspirerende | R75: =H9 -> 0 | S75: =I9 -> 43. Let sind
B76: =H20 -> 0 | C76: =I20 -> 52. Ubøjelig | D76: =N16 -> 0 | E76: =O16 -> 89. Drivende | F76: =H23 -> 0 | G76: =I23 -> 55. Ryggesløs | H76: =N7 -> 0 | I76: =O7 -> 81. Administrator | J76: =K25 -> 0 | K76: =L25 -> 76. Fredelig | L76: =K26 -> 0 | M76: =L26 -> 77. Uformel | N76: =H16 -> 0 | O76: =I16 -> 49. Organisator | P76: =K14 -> 0 | Q76: =L14 -> 67. Prøvende | R76: =H14 -> 0 | S76: =I14 -> 47. Attraktiv
B77: =H22 -> 0 | C77: =I22 -> 54. Selvcentreret | D77: =N21 -> 0 | E77: =O21 -> 93. Entusiastisk | F77: =H28 -> 0 | G77: =I28 -> 59. Idealistisk | H77: =N10 -> 0 | I77: =O10 -> 84. Dogmatisk | J77: =N20 -> 0 | K77: =O20 -> 92. Rolig | L77: =N8 -> 0 | M77: =O8 -> 82. Giver efter | N77: =H21 -> 0 | O77: =I21 -> 53. Lystrer ordrer | P77: =K20 -> 0 | Q77: =L20 -> 72. Forsigtig | R77: =H17 -> 0 | S77: =I17 -> 50. Menneskelig
B78: =H25 -> 0 | C78: =I25 -> 56. Diplomatisk | D78: =N27 -> 0 | E78: =O27 -> 98. Kraftfuld | F78: =K10 -> 0 | G78: =L10 -> 64. Tager chancer | H78: =N11 -> 0 | I78: =O11 -> 85. Formel | J78: =N29 -> 0 | K78: =O29 -> 100. Lyttende | L78: =N14 -> 0 | M78: =O14 -> 87. Utroværdig | N78: =H26 -> 0 | O78: =I26 -> 57. Kontrollerende | P78: =K27 -> 0 | Q78: =L27 -> 78. Tilpasser sig | R78: =H27 -> 0 | S78: =I27 -> 58. Charmerende
B79: =K7 -> 0 | C79: =L7 -> 61. Kvalitetsbevidst | D79: =Q11 -> 0 | E79: =R11 -> 105. Energisk | F79: =K17 -> 0 | G79: =L17 -> 70. Idérig | H79: =Q7 -> 0 | I79: =R7 -> 101. Målbevidst | J79: =Q27 -> 0 | K79: =R27 -> 118. Aktiv | L79: =N17 -> 0 | M79: =O17 -> 90. Nonchalant | N79: =K8 -> 0 | O79: =L8 -> 62. Kontrolleret | P79: =N25 -> 0 | Q79: =O25 -> 96. Samarbejdsvillig | R79: =K9 -> 0 | S79: =L9 -> 63. Fysisk aktiv
B80: =K13 -> 0 | C80: =L13 -> 66. Beslutsom | D80: =Q17 -> 0 | E80: =R17 -> 110. Modig | F80: =K22 -> 0 | G80: =L22 -> 74. Fanatisk | H80: =Q13 -> 0 | I80: =R13 -> 106. Nøjagtig | L80: =N19 -> 0 | M80: =O19 -> 91. Legesyg | N80: =N22 -> 0 | O80: =O22 -> 94. Tillidsfuld | P80: =Q8 -> 0 | Q80: =R8 -> 102. Tålmodig | R80: =K21 -> 0 | S80: =L21 -> 73. Melankolsk
B81: =K19 -> 0 | C81: =L19 -> 71. Majestætisk | D81: =Q26 -> 0 | E81: =R26 -> 117. Overbevisende | F81: =N9 -> 0 | G81: =O9 -> 83. Billedlig | H81: =Q20 -> 0 | I81: =R20 -> 112. Fordomsfuld | L81: =N28 -> 0 | M81: =O28 -> 99. Taler frit | N81: =Q9 -> 0 | O81: =R9 -> 103. Praktisk | P81: =Q29 -> 0 | Q81: =R29 -> 120. Involveret | R81: =K29 -> 0 | S81: =L29 -> 80. Skaber enighed
B82: =N13 -> 0 | C82: =O13 -> 86. Bagstræberisk | F82: =N23 -> 0 | G82: =O23 -> 95. Pionerånd | H82: =Q23 -> 0 | I82: =R23 -> 115. Forandringssky | L82: =Q16 -> 0 | M82: =R16 -> 109. Åbent sind | N82: =Q14 -> 0 | O82: =R14 -> 107. Respektfuld | R82: =N15 -> 0 | S82: =O15 -> 88. Udglattende
B83: =N26 -> 0 | C83: =O26 -> 97. Ansvarsbevidst | F83: =Q21 -> 0 | G83: =R21 -> 113. Ophidset | N83: =Q19 -> 0 | O83: =R19 -> 111. Kritisk | R83: =Q15 -> 0 | S83: =R15 -> 108. Populær
B84: =Q10 -> 0 | C84: =R10 -> 104. Viljestærk | F84: =Q25 -> 0 | G84: =R25 -> 116. Skabende | N84: =Q28 -> 0 | O84: =R28 -> 119. Hårdt arbejdende | R84: =Q22 -> 0 | S84: =R22 -> 114. Uenergisk
B85: =15-COUNTIF(B70:B84,0) -> 0 | C85: A Resultat | D85: =12-COUNTIF(D70:D84,0) -> 0 | E85: B Resultat | F85: =15-COUNTIF(F70:F84,0) -> 0 | G85: C Resultat | H85: =13-COUNTIF(H70:H84,0) -> 0 | I85: D Resultat | J85: =10-COUNTIF(J70:J84,0) -> 0 | K85: E Resultat | L85: =13-COUNTIF(L70:L84,0) -> 0 | M85: F Resultat | N85: =15-COUNTIF(N70:N84,0) -> 0 | O85: G Resultat | P85: =12-COUNTIF(P70:P84,0) -> 0 | Q85: H Resultat | R85: =15-COUNTIF(R70:R84,0) -> 0 | S85: I Resultat
E87: DGGH | G87: =H85+N85+N85+P85 -> 0 | I87: Producent
E88: BAAD | G88: =D85+B85+B85+H85 -> 0 | I88: Administrator
E89: BCCF | G89: =D85+F85+F85+L85 -> 0 | I89: Entreprenør
E90: HIIF | G90: =P85+R85+R85+L85 -> 0 | I90: Integrator
C92: Producent | G92: Administrator | K92: Entreprenør | O92: Integrator
C93: Stræbsom og resultatorienteret Går i spidsen for gruppen Fuld kontrol af gruppen Kritisk over for kvalitet Skaffer resultaterne hjem Hurtig til at straffe og belønne Stor respekt for systemet | G93: Majestætisk/intellektuel Viljestærk og vedholdende Stor personlig drivkraft Konservativ og diplomatisk Tidlig voksen og fornuftig Centraliserer og samler Lægger store planer og gennemfører dem | K93: Pionerånd, driver gruppen frem Eventyrlysten og modig Inspirerende og idérig Skaber visioner og nytænkning Tager gerne chancer Farverig og gestikulerende Er forudsigelig | O93: Venlig og charmerende Populær og vellidt Munter og generøs Åben over for andre mennesker Sensitiv over for følelser Stor menneskelig ansvarlighed Omsorgsfuld og hjælpsom God politisk forståelse
C94: Karakterstærk og loyal God administrator Tager ikke mange chancer Konventionel og formel Lægger vægt på fakta Loyal og tillidsfuld Systematisk og praktisk | G94: Delegerer med fast hånd Kan lide faste rammer Nøjagtig i sine krav Vil se hurtige resultater Sikrer at regler overholdes God selvkontrol God administrator | K94: Veltalende og overbevisende Uformel og original Åben over for nye ideer Katalysator for andres ideer Kan placere nytænkning de rigtige steder | O94: Kammeratlig Ser lyst på tingene Poleret og venlig optræden Harmonisator Løser konflikter og skaber nye muligheder
C95: Er ikke bange Høflig, tålmodig og villig Søgende i samarbejde med andre Kan snakke meget Kan være glemsom og upræcis | G95: Optimistisk og balanceret Sætter mennesket over systemet Manøvrerer tingene på plads Organiserer sig ud af problemerne | K95: Analytisk og ansvarsbevidst Samarbejdsvillig Forstår værdien af nye tanker og ideer Gennemførelse tager tid Skynder sig langsomt | O95: Er ikke bange for konflikter Sætter gruppen over den enkelte Er uafhængig og stærk Individualist i problemløsning Beslutninger skal gennemføres
C96: Ønsker ikke faste regler Kan være hård i samarbejdet med andre, ryggesløs Aggressiv og uafhængig Kan være utroværdig Ukonventionel og rastløs Arbejder gerne alene Sætter sine egne regler | G96: Uenergisk og doven Kan virke nonchalant Kan i pressede situationer blive melankolsk og selvmedlidende Ofte letsindig/Arbejder i bølger Arbejder gerne uden regler Kan ikke lide rutinearbejde | K96: Intet kan ændres Menneskeligt stabil med faste holdninger Kan virke farveløs og kedelig Er god i specialistjob Bevarer det traditionsrige og forudsigelige Regelfast | O96: Ønsker ingen forandringer Dogmatisk, autoritær og magtsyg Arbejder gerne alene Elsker smiger og ros Går ind for disciplin og hårdt arbejde Er ofte hård i sin straf Beslutninger gennemføres til yderste konsekvens Giver ikke efter
B98: =PAEI!K7 -> 0 | C98: =PAEI!L7 -> 61. Kvalitetsbevidst | D98: =PAEI!Q11 -> 0 | E98: =PAEI!R11 -> 105. Energisk | F98: =PAEI!K17 -> 0 | G98: =PAEI!L17 -> 70. Idérig | H98: =PAEI!Q7 -> 0 | I98: =PAEI!R7 -> 101. Målbevidst | J98: =PAEI!Q27 -> 0 | K98: =PAEI!R27 -> 118. Aktiv | L98: =PAEI!N17 -> 0 | M98: =PAEI!O17 -> 90. Nonchalant | N98: =PAEI!K8 -> 0 | O98: =PAEI!L8 -> 62. Kontrolleret | P98: =PAEI!N25 -> 0 | Q98: =PAEI!O25 -> 96. Samarbejdsvillig | R98: =PAEI!K9 -> 0 | S98: =PAEI!L9 -> 63. Fysisk aktiv
B99: =PAEI!K13 -> 0 | C99: =PAEI!L13 -> 66. Beslutsom | D99: =PAEI!Q17 -> 0 | E99: =PAEI!R17 -> 110. Modig | F99: =PAEI!K22 -> 0 | G99: =PAEI!L22 -> 74. Fanatisk | H99: =PAEI!Q13 -> 0 | I99: =PAEI!R13 -> 106. Nøjagtig | L99: =PAEI!N19 -> 0 | M99: =PAEI!O19 -> 91. Legesyg | N99: =PAEI!N22 -> 0 | O99: =PAEI!O22 -> 94. Tillidsfuld | P99: =PAEI!Q8 -> 0 | Q99: =PAEI!R8 -> 102. Tålmodig | R99: =PAEI!K21 -> 0 | S99: =PAEI!L21 -> 73. Melankolsk
B100: =PAEI!K19 -> 0 | C100: =PAEI!L19 -> 71. Majestætisk | D100: =PAEI!Q26 -> 0 | E100: =PAEI!R26 -> 117. Overbevisende | F100: =PAEI!N9 -> 0 | G100: =PAEI!O9 -> 83. Billedlig | H100: =PAEI!Q20 -> 0 | I100: =PAEI!R20 -> 112. Fordomsfuld | L100: =PAEI!N28 -> 0 | M100: =PAEI!O28 -> 99. Taler frit | N100: =PAEI!Q9 -> 0 | O100: =PAEI!R9 -> 103. Praktisk | P100: =PAEI!Q29 -> 0 | Q100: =PAEI!R29 -> 120. Involveret | R100: =PAEI!K29 -> 0 | S100: =PAEI!L29 -> 80. Skaber enighed
B101: =PAEI!N13 -> 0 | C101: =PAEI!O13 -> 86. Bagstræberisk | F101: =PAEI!N23 -> 0 | G101: =PAEI!O23 -> 95. Pionerånd | H101: =PAEI!Q23 -> 0 | I101: =PAEI!R23 -> 115. Forandringssky | L101: =PAEI!Q16 -> 0 | M101: =PAEI!R16 -> 109. Åbent sind | N101: =PAEI!Q14 -> 0 | O101: =PAEI!R14 -> 107. Respektfuld | R101: =PAEI!N15 -> 0 | S101: =PAEI!O15 -> 88. Udglattende
B102: =PAEI!N26 -> 0 | C102: =PAEI!O26 -> 97. Ansvarsbevidst | F102: =PAEI!Q21 -> 0 | G102: =PAEI!R21 -> 113. Ophidset | N102: =PAEI!Q19 -> 0 | O102: =PAEI!R19 -> 111. Kritisk | R102: =PAEI!Q15 -> 0 | S102: =PAEI!R15 -> 108. Populær
B103: =PAEI!Q10 -> 0 | C103: =PAEI!R10 -> 104. Viljestærk | F103: =PAEI!Q25 -> 0 | G103: =PAEI!R25 -> 116. Skabende | N103: =PAEI!Q28 -> 0 | O103: =PAEI!R28 -> 119. Hårdt arbejdende | R103: =PAEI!Q22 -> 0 | S103: =PAEI!R22 -> 114. Uenergisk
B104: =15-COUNTIF(B89:B103,0) -> 9 | C104: A Resultat | D104: =12-COUNTIF(D89:D103,0) -> 9 | E104: B Resultat | F104: =15-COUNTIF(F89:F103,0) -> 9 | G104: C Resultat | H104: =13-COUNTIF(H89:H103,0) -> 9 | I104: D Resultat | J104: =10-COUNTIF(J89:J103,0) -> 9 | K104: E Resultat | L104: =13-COUNTIF(L89:L103,0) -> 9 | M104: F Resultat | N104: =15-COUNTIF(N89:N103,0) -> 9 | O104: G Resultat | P104: =12-COUNTIF(P89:P103,0) -> 9 | Q104: H Resultat | R104: =15-COUNTIF(R89:R103,0) -> 9 | S104: I Resultat
E106: DGGH | G106: =H104+N104+N104+P104 -> 36
E107: BAAD | G107: =D104+B104+B104+H104 -> 36
E108: BCCF | G108: =D104+F104+F104+L104 -> 36
E109: HIIF | G109: =P104+R104+R104+L104 -> 36
C111: Producent | G111: Integrator | K111: Entreprenør | O111: Administrator
C112: Stræbsom og resultatorienteret Går i spidsen for gruppen Fuld kontrol af gruppen Kritisk over for kvalitet Skaffer resultaterne hjem Hurtig til at straffe og belønne Stor respekt for systemet | G112: Majestætisk/intellektuel Viljestærk og vedholdende Stor personlig drivkraft Konservativ og diplomatisk Tidlig voksen og fornuftig Centraliserer og samler Lægger store planer og gennemfører dem | K112: Pionerånd, driver gruppen frem Eventyrlysten og modig Inspirerende og idérig Skaber visioner og nytænkning Tager gerne chancer Farverig og gestikulerende Er forudsigelig | O112: Venlig og charmerende Populær og vellidt Munter og generøs Åben over for andre mennesker Sensitiv over for følelser Stor menneskelig ansvarlighed Omsorgsfuld og hjælpsom God politisk forståelse
C113: Karakterstærk og loyal God administrator Tager ikke mange chancer Konventionel og formel Lægger vægt på fakta Loyal og tillidsfuld Systematisk og praktisk | G113: Delegerer med fast hånd Kan lide faste rammer Nøjagtig i sine krav Vil se hurtige resultater Sikrer at regler overholdes God selvkontrol God administrator | K113: Veltalende og overbevisende Uformel og original Åben over for nye ideer Katalysator for andres ideer Kan placere nytænkning de rigtige steder | O113: Kammeratlig Ser lyst på tingene Poleret og venlig optræden Harmonisator Løser konflikter og skaber nye muligheder
C114: Er ikke bange Høflig, tålmodig og villig Søgende i samarbejde med andre Kan snakke meget Kan være glemsom og upræcis | G114: Optimistisk og balanceret Sætter mennesket over systemet Manøvrerer tingene på plads Organiserer sig ud af problemerne | K114: Analytisk og ansvarsbevidst Samarbejdsvillig Forstår værdien af nye tanker og ideer Gennemførelse tager tid Skynder sig langsomt | O114: Er ikke bange for konflikter Sætter gruppen over den enkelte Er uafhængig og stærk Individualist i problemløsning Beslutninger skal gennemføres
C115: Ønsker ikke faste regler Kan være hård i samarbejdet med andre, ryggesløs Aggressiv og uafhængig Kan være utroværdig Ukonventionel og rastløs Arbejder gerne alene Sætter sine egne regler | G115: Uenergisk og doven Kan virke nonchalant Kan i pressede situationer blive melankolsk og selvmedlidende Ofte letsindig/Arbejder i bølger Arbejder gerne uden regler Kan ikke lide rutinearbejde | K115: Intet kan ændres Menneskeligt stabil med faste holdninger Kan virke farveløs og kedelig Er god i specialistjob Bevarer det traditionsrige og forudsigelige Regelfast | O115: Ønsker ingen forandringer Dogmatisk, autoritær og magtsyg Arbejder gerne alene Elsker smiger og ros Går ind for disciplin og hårdt arbejde Er ofte hård i sin straf Beslutninger gennemføres til yderste konsekvens Giver ikke efter

Sheet Gruppekontrakt (hidden)
C2: Udført: | D2: =IF(I39>0,IF(I39>10,2,1),0) -> 0
B3: Hvilke forventninger har I til projektet?
I4: =ISTEXT(B4)*1 -> 0
B7: Hvilke betænkeligheder har I med hensyn til projektet?
I8: =ISTEXT(B8)*1 -> 0
B11: Hvor meget tid vil I bruge pr. person, på arbejdet i gruppen | I11: =ISTEXT(C11)*1 -> 0
B12: Hvad er jeres ambitionsniveau? (karakterniveau) | I12: =ISTEXT(C12)*1 -> 0
B13: Hvordan skal beslutninger i gruppen træffes? (Flertal/konsensus/anarki?) | I13: 0
B14: Har I alle adgang til it og internettet hjemme? | I14: 0
B15: Hvor vil I gemme fælles data (drev/sky/dropbox m.m.) | I15: 0
B16: Hvordan skal arbejdet fordeles i gruppen (kvantitativt/kvalitativt)?
B17: Kan gruppen pålægge medlemmerne arbejde?
I18: =ISTEXT(B18)*1 -> 0
B21: Hvilke forventninger har I, i forhold til projektet?
I22: =ISTEXT(B22)*1 -> 0
B25: Hvilke betænkeligheder har I, i forhold til projektet?
I26: =ISTEXT(B26)*1 -> 0
B29: Hvad gør man, hvis man ikke kommer en dag?
I30: =ISTEXT(B30)*1 -> 0
B33: Hvad betyder det, hvis der er en i gruppen, der ikke har lavet sit arbejde?
I34: =ISTEXT(B34)*1 -> 0
B37: Andre ting, der er vigtigt i forhold til gruppen
I38: =ISTEXT(B38)*1 -> 0
I39: =SUM(I4:I38) -> 0

Sheet Forretningsmodel (hidden)
F2: Udført: | G2: =IF(I15>0,IF(I15>8,2,1),0) -> 0
B3: Udfyld nedenstående 9 områder
B5: Aktør-netværk | C5: Nøgleaktiviteter | D5: Virksomhedens ”tilbud” | F5: Kunderelationer | G5: Målgruppe/kundesegment | I5: =ISTEXT(B7)*1 -> 0
B6: Hvem arbejder virksomheden sammen med | C6: Hvad er virksomhedens arbejdsområde | D6: Hvad tilbyder vi kunden/brugeren: værdier, ydelser, prestige | F6: Hvordan ”binder” vi kunden | G6: Hvem er vores kunder | I6: =ISTEXT(C7)*1 -> 0
I7: =ISTEXT(C12)*1 -> 0
I8: =ISTEXT(D7)*1 -> 0
I9: =ISTEXT(F7)*1 -> 0
C10: Nøgleressourcer | F10: Salgskanaler | I10: =ISTEXT(F12)*1 -> 0
C11: Hvad råder vi over, som gør os specielle | F11: Hvordan når vi ud til kunderne | I11: =ISTEXT(G7)*1 -> 0
I12: =ISTEXT(B15)*1 -> 0
B13: Omkostningsstruktur | I13: =ISTEXT(E15)*1 -> 0
B14: Omkostnings-produktudvikling | E14: Salg og indtægter
I15: =SUM(I5:I14) -> 0

Sheet SWOT_analyse (hidden)
F2: Udført: | G2: =IF(L10>0,IF(L10>7,2,1),0) -> 0
B3: Udfyld nedenstående 8 områder
B5: Swot den store model
D6: Styrker | F6: Svagheder
J7: =ISTEXT(C7)*1 -> 0 | K7: =ISTEXT(D7)*1 -> 0 | L7: =ISTEXT(F7)*1 -> 0
B8: Muligheder | J8: =ISTEXT(C8)*1 -> 0 | K8: =ISTEXT(D8)*1 -> 0 | L8: =ISTEXT(F8)*1 -> 0
B9: Trusler | J9: 0 | K9: 0 | L9: 0
L10: =SUM(J7:L9) -> 0
